{"text_format":"1","workbook":"xlsx","n_sheets":18,"sheets":["instructie","bedrijfsgegevens","visite","bedrijfsvoering","ziektegeschiedenis","diagnostiek","antibiotica vorige ronde","antibiotica huidige ronde","overige behandelingen","probleemdefinitie","Insleep","Overdracht tussen rondes","Verspreiding binnen een ronde","Weerstand","Zoonotische risicos","Registratie","opvolgplan","hulptabellen_opvolgplan"],"not_rendered":{"charts":0,"images":3,"macros":1,"external_links":1,"defined_names":1,"comments":0,"pivot_tables":0},"unopened":[],"bounds":{"document_bytes":16777216,"sheet_cells":100000,"rows_first":2000,"rows_last":500,"rows_between":2000,"halvings":0,"cell_chars":16384,"cell_head_chars":4096},"cells_cut":0,"cells_raw":0,"read":"whole","date_system":"1900"}

{"sheet":"instructie","index":0,"n_rows":66,"n_cols":16,"rows_kept":66,"cut":false,"hidden":false,"merged":[]}
[]
[]
[]
[]
[]
[]
[]
[]
[]
[]
[]
[]
[]
[]
[]
[]
[]
[]
[]
[]
[]
[]
[]
[]
[]
[]
[]
[]
[]
[]
[]
[]
[]
[]
[]
[]
[]
[]
[]
[]
[]
[]
[]
[]
[]
[]
[]
[]
[]
[]
[]
["totaal","bedrijfsgegevens","visite","bedrijfsvoering","ziektegeschiedenis","diagnostiek","antibiotica vorige ronde","antibiotica huidige ronde","overige behandelingen","probleemdefinitie","insleep","overdracht tussen rondes","verspreiding binnen ronde","weerstand","zoönotische risico's","pva"]
[{"$f":"IF(SUM(B53:U53)>0,1,0)","v":1},{"$f":"bedrijfsgegevens!D19","v":1},{"$f":"visite!G23","v":1},{"$f":"bedrijfsvoering!F29","v":1},{"$f":"ziektegeschiedenis!F35","v":1},{"$f":"diagnostiek!G37","v":0},{"$f":"'antibiotica vorige ronde'!N33","v":1},{"$f":"'antibiotica huidige ronde'!N33","v":1},{"$f":"'overige behandelingen'!E15","v":1},{"$f":"probleemdefinitie!C8","v":1},{"$f":"Insleep!G24","v":1},{"$f":"'Overdracht tussen rondes'!G23","v":1},{"$f":"'Verspreiding binnen een ronde'!G38","v":1},{"$f":"Weerstand!G19","v":1},{"$f":"'Zoonotische risicos'!G14","v":1},{"$f":"Registratie!G11","v":1}]
["Rode velden hierboven vormen een indicatie dat (mogelijk) nog niet alle benodigde gegevens zijn verzameld."]
[]
[]
[]
[]
[]
[]
[]
[]
[]
[]
[]
["Versie","salm_vlk_20221202_17"]

{"sheet":"bedrijfsgegevens","index":1,"n_rows":19,"n_cols":10,"rows_kept":19,"cut":false,"hidden":false,"merged":[]}
["Gegeven","Antwoord","Toelichting",null,null,null,null,"validatie"]
["ubn",null,null,{"$f":"IF(COUNTA(B2)<1,1,0)","v":1},null,null,null,1,9999999]
["veehouder",null,null,{"$f":"IF(COUNTA(B3)<1,1,0)","v":1}]
["straat",null,null,1]
["huisnummer",null,null,1]
["postcode",null,null,1]
["woonplaats",null,null,1]
["tel",null,null,1]
["mobiel",null,null,1]
["email",null,null,1]
[null,null,null,1]
["Bedrijfsgrootte (aantal kalverplaatsen)",null,null,1,null,null,null,0,5000]
["Type bedrijf",null,"Rosé start, Rosé afmest of Blankvlees",1,null,null,null,"Rosé start","Rosé afmest","Blankvlees"]
["Aantal medewerkers, inclusief eigen arbeid",null,"Aantal personen",1,null,null,null,0,25]
["Aantal stallen",null,"Een stal wordt gedefinieerd als een afgesloten compartiment onder één dak. Een stal kan meerdere afdelingen bevatten",1,null,null,null,0,25]
["Aantal afdelingen",null,"Een afdeling is een (gedeelte van een) stal die de aanwezige kalveren fysiek scheidt van andere kalveren, bijvoorbeeld door een muur.",1,null,null,null,0,25]
["All-in all-out op bedrijfsniveau",null,"ja of nee",1,null,null,null,"ja","nee"]
["Maximum aantal leeftijdsgroepen op één moment",null,"NB: indien op enig moment meer dan één leeftijdsgroep tegelijkertijd aanwezig is, vul dit excelbestand dan voor iedere leeftijdsgroep apart in!",1,null,null,null,0,5]
[null,null,null,{"$f":"IF((SUM(D2:D18))>0,1,0)","v":1}]

{"sheet":"visite","index":2,"n_rows":27,"n_cols":13,"rows_kept":27,"cut":false,"hidden":false,"merged":[]}
["Vraag","Antwoord",null,null,null,null,null,null,null,null,"j/n","0/1","tijd"]
["Visite afgelegd door (naam)",null,null,null,null,null,{"$f":"IF(COUNTA(B2)<1,1,0)","v":1},null,null,null,"ja",null,"06:00:00"]
["Dierenartsenpraktijk",null,null,null,null,null,1,null,null,null,"nee",null,"22:00:00"]
["DAP nummer",null,null,null,null,null,1]
["Tel:",null,null,null,null,null,{"$f":"IF(COUNTA(B5)<1,1,0)","v":1}]
["Mobiel:"]
["Datum visite (dd/mm/yyyy)",null,null,null,null,null,{"$f":"IF(COUNTA(B7)<1,1,0)","v":1}]
["Aankomsttijd (hh:mm)",null,null,null,null,null,{"$f":"IF(COUNTA(B8)<1,1,0)","v":1}]
["Einddtijd (hh:mm)",null,null,null,null,null,{"$f":"IF(COUNTA(B9)<1,1,0)","v":1}]
[]
["Anderen bij bedrijfsbezoek","Naam","Rol t.o.v. Bedrijf","Firma/onderneming","Verzekeringsmaatschappijk","Tel. of mobiel"]
["Bedrijfsleider"]
["(Vertegenwoordiger van) Kalvereigenaar"]
["Overig 1"]
["Overig 2"]
[]
["Vragen van veehouder",null,null,null,null,null,{"$f":"IF(COUNTA(B17)<1,1,0)","v":1}]
[]
[]
[]
[]
[]
[null,null,null,null,null,null,{"$f":"IF(SUM(G2:G22)>0,1,0)","v":1}]
[]
[]
[null,null,null,null,null,null,null,null,null,null,null,0]
[null,null,null,null,null,null,null,null,null,null,null,1]

{"sheet":"bedrijfsvoering","index":3,"n_rows":29,"n_cols":12,"rows_kept":29,"cut":false,"hidden":false,"merged":[[20,4,25,4]]}
[null,"Vorige ronde","Huidige ronde","Opmerkingen","Toelichting",null,null,null,null,null,"Validatie"]
["Startdatum (datum aanvoer eerste kalf, dd-mm-jjjj)",null,null,null,null,{"$f":"IF(COUNTA(B2:C2)<2,1,IF(C2<B3,1,0))","v":1},null,null,null,null,"2010-01-01","2035-12-31"]
["Einddatum (datum afvoer laatste kalf, dd-mm-jjjj)",null,null,null,null,{"$f":"IF(COUNTA(B3:C3)<2,1,IF(B3<B2,1,IF(C3<C2,1,0)))","v":1},null,null,null,null,"2010-01-01","2035-12-31"]
["All-in all-out voorafgaande aan ronde (ja / nee)",null,null,null,null,{"$f":"IF(COUNTA(B4:C4)<2,1,0)","v":1},null,null,null,null,"ja","nee"]
["Aantal dagen leegstand voor ronde",null,null,null,null,{"$f":"IF(COUNTA(B5:C5)<2,1,0)","v":1},null,null,null,null,0,1000]
["Aantal opgezette kalveren",null,null,null,null,{"$f":"IF(COUNTA(B6:C6)<2,1,0)","v":1},null,null,null,null,0,20000]
["Aantal dagen tussen opzet eerste en laatste kalf",null,null,null,null,{"$f":"IF(COUNTA(B7:C7)<2,1,0)","v":1},null,null,null,null,0,200]
["Herkomst opgezette kalveren"]
["Aantal kalveren uit Nederland",null,null,null,null,{"$f":"IF(COUNTA(B9:C9)<2,1,0)","v":1},null,null,null,null,0,20000]
["Aantal kalveren uit Duitsland",null,null,null,null,1,null,null,null,null,0,20000]
["Aantal kalveren uit België",null,null,null,null,1,null,null,null,null,0,20000]
["Aantal kalveren uit Ierland",null,null,null,null,1,null,null,null,null,0,20000]
["Aantal kalveren uit Denemarken",null,null,null,null,1,null,null,null,null,0,20000]
["Aantal kalveren uit ander land",null,null,null,null,1,null,null,null,null,0,20000]
["te weten uit (land)",null,null,null,null,1]
["som  van aantal kalveren per land",{"$f":"SUM(B9:B14)","v":0},{"$f":"SUM(C9:C14)","v":0},null,null,{"$f":"IF(B16<>B6,1,IF(C16<>C6,1,0))","v":0}]
["Gewichtscategorie"]
["Minimum (kg)",null,null,null,null,{"$f":"IF(COUNTA(B18:C18)<2,1,0)","v":1},null,null,null,null,0,150]
["Maximum (kg)",null,null,null,null,{"$f":"IF(COUNTA(B19:C19)<2,1,0)","v":1},null,null,null,null,0,150]
["Manier van sorteren tijdens individuele huisvesting",null,null,null,null,{"$f":"IF(SUM(B21:B26)<1,1,(IF(SUM(C21:C26)<1,1,0)))","v":1}]
[" O.b.v. opzetgewicht",0,0,null,"Meerdere antwoorden zijn mogelijk, als een antwoord van toepassing is, vul dan een '1' in.",null,null,null,null,null,0,1]
["O.b.v. drinksnelheid",0,0,null,null,null,null,null,null,null,0,1]
["O.b.v. geslacht",0,0,null,null,null,null,null,null,null,0,1]
["O.b.v. ras",0,0,null,null,null,null,null,null,null,0,1]
["O.b.v. ras",0,0,null,null,null,null,null,null,null,0,1]
["Obv ander criterium",0,0,null,null,null,null,null,null,null,0,1]
["te weten",null,null,null,"(Invullen indien obv ander criterium wordt gesorteerd)"]
["Eventuele bijzonderheden tijdens een ronde:"]
[null,null,null,null,null,{"$f":"IF(SUM(F2:F27)>0,1,0)","v":1}]

{"sheet":"ziektegeschiedenis","index":4,"n_rows":35,"n_cols":13,"rows_kept":35,"cut":false,"hidden":false,"merged":[[14,4,17,4],[20,4,23,4]]}
[null,"Vorige ronde","Huidige ronde","Opmerkingen","Toelichting",null,null,null,null,null,"Validatie"]
["Aantal garantiekalveren gemeld",null,null,null,null,{"$f":"IF(COUNTA(B2:C2)<2,1,IF(C2<B3,1,0))","v":1},null,null,null,null,0,20000]
["Uitval 0-4 weken (%)",null,null,null,null,{"$f":"IF(COUNTA(B3:C3)<2,1,0)","v":1},null,null,null,null,0,100]
["Uitval 0-8 weken (%)",null,null,null,null,{"$f":"IF(COUNTA(B4:C4)<2,1,IF(B4<B3,1,IF(C4<C3,1,0)))","v":1},null,null,null,null,0,100]
["Uitval 0-12 weken (%)",null,null,null,null,{"$f":"IF(COUNTA(B5:C5)<2,1,IF(B5<B4,1,IF(C5<C4,1,0)))","v":1},null,null,null,null,0,100]
["Uitval van 0 tot 180 dagen (%)",null,null,null,null,1,null,null,null,null,0,100]
["Uitval gehele ronde (%)",null,null,null,null,1,null,null,null,null,0,100]
["Gemiddelde leeftijd bij uitval",null,null,null,null,{"$f":"IF(COUNTA(B8:C8)<2,1,0)","v":1},null,null,null,null,0,365]
["DDD per ronde (DDD/DJ)",null,null,null,null,{"$f":"IF(COUNTA(B9:C9)<2,1,0)","v":1},null,null,null,null,0,365]
["Salmonella vermoeden in deze ronde? (ja / nee)",null,null,null,null,{"$f":"IF(COUNTA(B10:C10)<2,1,0)","v":1},null,null,null,null,"ja","nee"]
["Datum eerste vermoeden van salmonellose (dd-mm-jjjj)",null,null,null,null,{"$f":"IF(OR(AND(B10=\"ja\",B11=\"\"),AND(C10=\"ja\",C11=\"\")),1,0)","v":0},null,null,null,null,"2010-01-01","2035-12-31"]
["Is de diagnose bevestigd d.m.v. laboratoriumonderzoek?",null,null,null,"vul 'nvt' in als er geen vermoeden van salmonella is geweest",{"$f":"IF(COUNTA(B12:C12)<2,1,0)","v":1},null,null,null,null,"ja","nee","nvt"]
["Datum eerste positieve uitslag (dd-mm-jjjj)",null,null,null,null,{"$f":"IF(OR(AND(B12=\"ja\",B13=\"\"),AND(C12=\"ja\",C13=\"\")),1,0)","v":0},null,null,null,null,"2010-01-01","2035-12-31"]
["In welke leeftijdscategorie(-ën) traden klachten op?",null,null,null,null,{"$f":"IF(AND(B10=\"ja\",SUM(B15:B18)<1),1,(IF(AND(C10=\"ja\",SUM(C15:C18)<1),1,0)))","v":0}]
["0 - 4 weken",0,0,null,"Meerdere antwoorden zijn mogelijk, als een antwoord van toepassing is, vul dan een '1' in.",null,null,null,null,null,0,1]
["4 - 8 weken",0,0,null,null,null,null,null,null,null,0,1]
["8 - 12 weken",0,0,null,null,null,null,null,null,null,0,1]
["≥ 12 weken",0,0,null,null,null,null,null,null,null,0,1]
["Begonnen de klachten bij een specifieke diergroep (levering, nationaliteit, geslacht, gewichtsklasse, ras)? Zo ja, welke?",null,null,null,"(Invullen indien obv ander criterium wordt gesorteerd)"]
["Wat waren de klachten?",null,null,null,null,{"$f":"IF(AND(B10=\"ja\",SUM(B21:B27,B29)<1),1,(IF(AND(C10=\"ja\",SUM(C21:C27,C29)<1),1,0)))","v":0}]
["Diarree zonder bloedbijmenging",0,0,null,"Meerdere antwoorden zijn mogelijk, als een antwoord van toepassing is, vul dan een '1' in.",{"$f":"IF(AND(B$10=\"nee\",B21=1),1,IF(AND(C$10=\"nee\",C21=1),1,0))","v":0},null,null,null,null,0,1]
["Diarree met bloedbijmenging",0,0,null,null,{"$f":"IF(AND(B$10=\"nee\",B22=1),1,IF(AND(C$10=\"nee\",C22=1),1,0))","v":0},null,null,null,null,0,1]
["Luchtwegproblemen",0,0,null,null,0,null,null,null,null,0,1]
["Lagere groei",0,0,null,null,0,null,null,null,null,0,1]
["Koorts",0,0,null,null,0,null,null,null,null,0,1]
["Verminderde drinklust en/of eetlust",0,0,null,null,0,null,null,null,null,0,1]
["Uitval",1,0,null,null,0,null,null,null,null,0,1]
["indien uitval, wat is het aantal uitgevallen kalveren?",null,null,null,null,{"$f":"IF(OR(AND(B28=\"\",B27=1),AND(C28=\"\",C27=1)),1,0)","v":1}]
["Anders",0,0,null,null,0,null,null,null,null,0,1]
["indien anders, welke klachten?",null,null,null,null,{"$f":"IF(OR(AND(B30=\"\",B29=1),AND(C30=\"\",C29=1)),1,0)","v":0}]
["In welke stal/afdeling/rij is salmonellose het eerst waargenomen?",null,null,null,null,{"$f":"IF(OR(AND(B31=\"\",B10=\"ja\"),AND(C31=\"\",C10=\"ja\")),1,0)","v":0}]
["Zijn de klachten verspreid naar andere afdelingen? Zo ja, welke?",null,null,null,null,{"$f":"IF(OR(AND(B31<>\"\",B32=\"\"),AND(C31<>\"\",C32=\"\")),1,0)","v":0}]
["Geschatte uitval gehele ronde als gevolg van salmonellose (%)",0,0,null,null,{"$f":"IF(OR(AND(B12=\"ja\",B33=0),AND(C12=\"ja\",C33=0)),1,0)","v":0},null,null,null,null,0,100]
["Eventuele bijzonderheden of in het oog springende afwijkingen tijdens een ronde:"]
[null,null,null,null,null,{"$f":"IF(SUM(F2:F19)>0,1,0)","v":1}]

{"sheet":"diagnostiek","index":5,"n_rows":37,"n_cols":45,"rows_kept":37,"cut":false,"hidden":false,"merged":[]}
["Datum (dd-mm-jjjj)","Afdeling","Onderzoek","Aantal_kalveren_onderzocht","Aantal_kalveren_positief","Serotype (indien bekend)",null,null,null,null,null,"validatie","datum",null,"onderzoek",null,null,null,null,null,"Aantal",null,null,"Serotype"]
[null,null,null,null,null,null,{"$f":"IF(AND(OR(ziektegeschiedenis!C12=\"ja\",ziektegeschiedenis!D12=\"ja\"),COUNTA(diagnostiek!A2:F2)<4),1,0)","v":0},null,null,null,null,null,"2018-01-01","2035-12-31","serum ELISA","serum BUA","mestkweek","mest PCR","sectie","overig",0,1,1000,"Serogroep B, serotype Brandenburg","Serogroep B, serotype Derby","Serogroep B, serotype  Heidelberg","Serogroep B, serotype Typhimurium","Serogroep B, overig serotype","Serogroep C, serotype Goldcoast","Serogroep C, serotype Hadar","Serogroep C, serotype Infantis","Serogroep C, serotype Montevideo","Serogroep C, serotype Newport","Serogroep C, serotype Virchow","Serogroep C, overig serotype","Serogroep D, serotype Dublin","Serogroep D, serotype Enteritidis","Serogroep D, serotype Panama","Serogroep D, overig serotype","Serogroep E, serotype Lexington","Serogroep E, serotype Muenster","Serogroep E, serotype Senftenberg","Serogroep E, overig serotype","Restgroep \"F67\"","Onbekend"]
[null,null,null,null,null,null,null,null,null,null,null,null,"2018-01-01","2035-12-31","serum ELISA","serum BUA","mestkweek","mest PCR","sectie","overig",0,1,1000,"Serogroep B, serotype Brandenburg","Serogroep B, serotype Derby","Serogroep B, serotype  Heidelberg","Serogroep B, serotype Typhimurium","Serogroep B, overig serotype","Serogroep C, serotype Goldcoast","Serogroep C, serotype Hadar","Serogroep C, serotype Infantis","Serogroep C, serotype Montevideo","Serogroep C, serotype Newport","Serogroep C, serotype Virchow","Serogroep C, overig serotype","Serogroep D, serotype Dublin","Serogroep D, serotype Enteritidis","Serogroep D, serotype Panama","Serogroep D, overig serotype","Serogroep E, serotype Lexington","Serogroep E, serotype Muenster","Serogroep E, serotype Senftenberg","Serogroep E, overig serotype","Restgroep \"F67\"","Onbekend"]
[null,null,null,null,null,null,null,null,null,null,null,null,"2018-01-01","2035-12-31","serum ELISA","serum BUA","mestkweek","mest PCR","sectie","overig",0,1,1000,"Serogroep B, serotype Brandenburg","Serogroep B, serotype Derby","Serogroep B, serotype  Heidelberg","Serogroep B, serotype Typhimurium","Serogroep B, overig serotype","Serogroep C, serotype Goldcoast","Serogroep C, serotype Hadar","Serogroep C, serotype Infantis","Serogroep C, serotype Montevideo","Serogroep C, serotype Newport","Serogroep C, serotype Virchow","Serogroep C, overig serotype","Serogroep D, serotype Dublin","Serogroep D, serotype Enteritidis","Serogroep D, serotype Panama","Serogroep D, overig serotype","Serogroep E, serotype Lexington","Serogroep E, serotype Muenster","Serogroep E, serotype Senftenberg","Serogroep E, overig serotype","Restgroep \"F67\"","Onbekend"]
[null,null,null,null,null,null,null,null,null,null,null,null,"2018-01-01","2035-12-31","serum ELISA","serum BUA","mestkweek","mest PCR","sectie","overig",0,1,1000,"Serogroep B, serotype Brandenburg","Serogroep B, serotype Derby","Serogroep B, serotype  Heidelberg","Serogroep B, serotype Typhimurium","Serogroep B, overig serotype","Serogroep C, serotype Goldcoast","Serogroep C, serotype Hadar","Serogroep C, serotype Infantis","Serogroep C, serotype Montevideo","Serogroep C, serotype Newport","Serogroep C, serotype Virchow","Serogroep C, overig serotype","Serogroep D, serotype Dublin","Serogroep D, serotype Enteritidis","Serogroep D, serotype Panama","Serogroep D, overig serotype","Serogroep E, serotype Lexington","Serogroep E, serotype Muenster","Serogroep E, serotype Senftenberg","Serogroep E, overig serotype","Restgroep \"F67\"","Onbekend"]
[null,null,null,null,null,null,null,null,null,null,null,null,"2018-01-01","2035-12-31","serum ELISA","serum BUA","mestkweek","mest PCR","sectie","overig",0,1,1000,"Serogroep B, serotype Brandenburg","Serogroep B, serotype Derby","Serogroep B, serotype  Heidelberg","Serogroep B, serotype Typhimurium","Serogroep B, overig serotype","Serogroep C, serotype Goldcoast","Serogroep C, serotype Hadar","Serogroep C, serotype Infantis","Serogroep C, serotype Montevideo","Serogroep C, serotype Newport","Serogroep C, serotype Virchow","Serogroep C, overig serotype","Serogroep D, serotype Dublin","Serogroep D, serotype Enteritidis","Serogroep D, serotype Panama","Serogroep D, overig serotype","Serogroep E, serotype Lexington","Serogroep E, serotype Muenster","Serogroep E, serotype Senftenberg","Serogroep E, overig serotype","Restgroep \"F67\"","Onbekend"]
[null,null,null,null,null,null,null,null,null,null,null,null,"2018-01-01","2035-12-31","serum ELISA","serum BUA","mestkweek","mest PCR","sectie","overig",0,1,1000,"Serogroep B, serotype Brandenburg","Serogroep B, serotype Derby","Serogroep B, serotype  Heidelberg","Serogroep B, serotype Typhimurium","Serogroep B, overig serotype","Serogroep C, serotype Goldcoast","Serogroep C, serotype Hadar","Serogroep C, serotype Infantis","Serogroep C, serotype Montevideo","Serogroep C, serotype Newport","Serogroep C, serotype Virchow","Serogroep C, overig serotype","Serogroep D, serotype Dublin","Serogroep D, serotype Enteritidis","Serogroep D, serotype Panama","Serogroep D, overig serotype","Serogroep E, serotype Lexington","Serogroep E, serotype Muenster","Serogroep E, serotype Senftenberg","Serogroep E, overig serotype","Restgroep \"F67\"","Onbekend"]
[null,null,null,null,null,null,null,null,null,null,null,null,"2018-01-01","2035-12-31","serum ELISA","serum BUA","mestkweek","mest PCR","sectie","overig",0,1,1000,"Serogroep B, serotype Brandenburg","Serogroep B, serotype Derby","Serogroep B, serotype  Heidelberg","Serogroep B, serotype Typhimurium","Serogroep B, overig serotype","Serogroep C, serotype Goldcoast","Serogroep C, serotype Hadar","Serogroep C, serotype Infantis","Serogroep C, serotype Montevideo","Serogroep C, serotype Newport","Serogroep C, serotype Virchow","Serogroep C, overig serotype","Serogroep D, serotype Dublin","Serogroep D, serotype Enteritidis","Serogroep D, serotype Panama","Serogroep D, overig serotype","Serogroep E, serotype Lexington","Serogroep E, serotype Muenster","Serogroep E, serotype Senftenberg","Serogroep E, overig serotype","Restgroep \"F67\"","Onbekend"]
[null,null,null,null,null,null,null,null,null,null,null,null,"2018-01-01","2035-12-31","serum ELISA","serum BUA","mestkweek","mest PCR","sectie","overig",0,1,1000,"Serogroep B, serotype Brandenburg","Serogroep B, serotype Derby","Serogroep B, serotype  Heidelberg","Serogroep B, serotype Typhimurium","Serogroep B, overig serotype","Serogroep C, serotype Goldcoast","Serogroep C, serotype Hadar","Serogroep C, serotype Infantis","Serogroep C, serotype Montevideo","Serogroep C, serotype Newport","Serogroep C, serotype Virchow","Serogroep C, overig serotype","Serogroep D, serotype Dublin","Serogroep D, serotype Enteritidis","Serogroep D, serotype Panama","Serogroep D, overig serotype","Serogroep E, serotype Lexington","Serogroep E, serotype Muenster","Serogroep E, serotype Senftenberg","Serogroep E, overig serotype","Restgroep \"F67\"","Onbekend"]
[null,null,null,null,null,null,null,null,null,null,null,null,"2018-01-01","2035-12-31","serum ELISA","serum BUA","mestkweek","mest PCR","sectie","overig",0,1,1000,"Serogroep B, serotype Brandenburg","Serogroep B, serotype Derby","Serogroep B, serotype  Heidelberg","Serogroep B, serotype Typhimurium","Serogroep B, overig serotype","Serogroep C, serotype Goldcoast","Serogroep C, serotype Hadar","Serogroep C, serotype Infantis","Serogroep C, serotype Montevideo","Serogroep C, serotype Newport","Serogroep C, serotype Virchow","Serogroep C, overig serotype","Serogroep D, serotype Dublin","Serogroep D, serotype Enteritidis","Serogroep D, serotype Panama","Serogroep D, overig serotype","Serogroep E, serotype Lexington","Serogroep E, serotype Muenster","Serogroep E, serotype Senftenberg","Serogroep E, overig serotype","Restgroep \"F67\"","Onbekend"]
[null,null,null,null,null,null,null,null,null,null,null,null,"2018-01-01","2035-12-31","serum ELISA","serum BUA","mestkweek","mest PCR","sectie","overig",0,1,1000,"Serogroep B, serotype Brandenburg","Serogroep B, serotype Derby","Serogroep B, serotype  Heidelberg","Serogroep B, serotype Typhimurium","Serogroep B, overig serotype","Serogroep C, serotype Goldcoast","Serogroep C, serotype Hadar","Serogroep C, serotype Infantis","Serogroep C, serotype Montevideo","Serogroep C, serotype Newport","Serogroep C, serotype Virchow","Serogroep C, overig serotype","Serogroep D, serotype Dublin","Serogroep D, serotype Enteritidis","Serogroep D, serotype Panama","Serogroep D, overig serotype","Serogroep E, serotype Lexington","Serogroep E, serotype Muenster","Serogroep E, serotype Senftenberg","Serogroep E, overig serotype","Restgroep \"F67\"","Onbekend"]
[null,null,null,null,null,null,null,null,null,null,null,null,"2018-01-01","2035-12-31","serum ELISA","serum BUA","mestkweek","mest PCR","sectie","overig",0,1,1000,"Serogroep B, serotype Brandenburg","Serogroep B, serotype Derby","Serogroep B, serotype  Heidelberg","Serogroep B, serotype Typhimurium","Serogroep B, overig serotype","Serogroep C, serotype Goldcoast","Serogroep C, serotype Hadar","Serogroep C, serotype Infantis","Serogroep C, serotype Montevideo","Serogroep C, serotype Newport","Serogroep C, serotype Virchow","Serogroep C, overig serotype","Serogroep D, serotype Dublin","Serogroep D, serotype Enteritidis","Serogroep D, serotype Panama","Serogroep D, overig serotype","Serogroep E, serotype Lexington","Serogroep E, serotype Muenster","Serogroep E, serotype Senftenberg","Serogroep E, overig serotype","Restgroep \"F67\"","Onbekend"]
[null,null,null,null,null,null,null,null,null,null,null,null,"2018-01-01","2035-12-31","serum ELISA","serum BUA","mestkweek","mest PCR","sectie","overig",0,1,1000,"Serogroep B, serotype Brandenburg","Serogroep B, serotype Derby","Serogroep B, serotype  Heidelberg","Serogroep B, serotype Typhimurium","Serogroep B, overig serotype","Serogroep C, serotype Goldcoast","Serogroep C, serotype Hadar","Serogroep C, serotype Infantis","Serogroep C, serotype Montevideo","Serogroep C, serotype Newport","Serogroep C, serotype Virchow","Serogroep C, overig serotype","Serogroep D, serotype Dublin","Serogroep D, serotype Enteritidis","Serogroep D, serotype Panama","Serogroep D, overig serotype","Serogroep E, serotype Lexington","Serogroep E, serotype Muenster","Serogroep E, serotype Senftenberg","Serogroep E, overig serotype","Restgroep \"F67\"","Onbekend"]
[null,null,null,null,null,null,null,null,null,null,null,null,"2018-01-01","2035-12-31","serum ELISA","serum BUA","mestkweek","mest PCR","sectie","overig",0,1,1000,"Serogroep B, serotype Brandenburg","Serogroep B, serotype Derby","Serogroep B, serotype  Heidelberg","Serogroep B, serotype Typhimurium","Serogroep B, overig serotype","Serogroep C, serotype Goldcoast","Serogroep C, serotype Hadar","Serogroep C, serotype Infantis","Serogroep C, serotype Montevideo","Serogroep C, serotype Newport","Serogroep C, serotype Virchow","Serogroep C, overig serotype","Serogroep D, serotype Dublin","Serogroep D, serotype Enteritidis","Serogroep D, serotype Panama","Serogroep D, overig serotype","Serogroep E, serotype Lexington","Serogroep E, serotype Muenster","Serogroep E, serotype Senftenberg","Serogroep E, overig serotype","Restgroep \"F67\"","Onbekend"]
[null,null,null,null,null,null,null,null,null,null,null,null,"2018-01-01","2035-12-31","serum ELISA","serum BUA","mestkweek","mest PCR","sectie","overig",0,1,1000,"Serogroep B, serotype Brandenburg","Serogroep B, serotype Derby","Serogroep B, serotype  Heidelberg","Serogroep B, serotype Typhimurium","Serogroep B, overig serotype","Serogroep C, serotype Goldcoast","Serogroep C, serotype Hadar","Serogroep C, serotype Infantis","Serogroep C, serotype Montevideo","Serogroep C, serotype Newport","Serogroep C, serotype Virchow","Serogroep C, overig serotype","Serogroep D, serotype Dublin","Serogroep D, serotype Enteritidis","Serogroep D, serotype Panama","Serogroep D, overig serotype","Serogroep E, serotype Lexington","Serogroep E, serotype Muenster","Serogroep E, serotype Senftenberg","Serogroep E, overig serotype","Restgroep \"F67\"","Onbekend"]
[null,null,null,null,null,null,null,null,null,null,null,null,"2018-01-01","2035-12-31","serum ELISA","serum BUA","mestkweek","mest PCR","sectie","overig",0,1,1000,"Serogroep B, serotype Brandenburg","Serogroep B, serotype Derby","Serogroep B, serotype  Heidelberg","Serogroep B, serotype Typhimurium","Serogroep B, overig serotype","Serogroep C, serotype Goldcoast","Serogroep C, serotype Hadar","Serogroep C, serotype Infantis","Serogroep C, serotype Montevideo","Serogroep C, serotype Newport","Serogroep C, serotype Virchow","Serogroep C, overig serotype","Serogroep D, serotype Dublin","Serogroep D, serotype Enteritidis","Serogroep D, serotype Panama","Serogroep D, overig serotype","Serogroep E, serotype Lexington","Serogroep E, serotype Muenster","Serogroep E, serotype Senftenberg","Serogroep E, overig serotype","Restgroep \"F67\"","Onbekend"]
[null,null,null,null,null,null,null,null,null,null,null,null,"2018-01-01","2035-12-31","serum ELISA","serum BUA","mestkweek","mest PCR","sectie","overig",0,1,1000,"Serogroep B, serotype Brandenburg","Serogroep B, serotype Derby","Serogroep B, serotype  Heidelberg","Serogroep B, serotype Typhimurium","Serogroep B, overig serotype","Serogroep C, serotype Goldcoast","Serogroep C, serotype Hadar","Serogroep C, serotype Infantis","Serogroep C, serotype Montevideo","Serogroep C, serotype Newport","Serogroep C, serotype Virchow","Serogroep C, overig serotype","Serogroep D, serotype Dublin","Serogroep D, serotype Enteritidis","Serogroep D, serotype Panama","Serogroep D, overig serotype","Serogroep E, serotype Lexington","Serogroep E, serotype Muenster","Serogroep E, serotype Senftenberg","Serogroep E, overig serotype","Restgroep \"F67\"","Onbekend"]
[null,null,null,null,null,null,null,null,null,null,null,null,"2018-01-01","2035-12-31","serum ELISA","serum BUA","mestkweek","mest PCR","sectie","overig",0,1,1000,"Serogroep B, serotype Brandenburg","Serogroep B, serotype Derby","Serogroep B, serotype  Heidelberg","Serogroep B, serotype Typhimurium","Serogroep B, overig serotype","Serogroep C, serotype Goldcoast","Serogroep C, serotype Hadar","Serogroep C, serotype Infantis","Serogroep C, serotype Montevideo","Serogroep C, serotype Newport","Serogroep C, serotype Virchow","Serogroep C, overig serotype","Serogroep D, serotype Dublin","Serogroep D, serotype Enteritidis","Serogroep D, serotype Panama","Serogroep D, overig serotype","Serogroep E, serotype Lexington","Serogroep E, serotype Muenster","Serogroep E, serotype Senftenberg","Serogroep E, overig serotype","Restgroep \"F67\"","Onbekend"]
[null,null,null,null,null,null,null,null,null,null,null,null,"2018-01-01","2035-12-31","serum ELISA","serum BUA","mestkweek","mest PCR","sectie","overig",0,1,1000,"Serogroep B, serotype Brandenburg","Serogroep B, serotype Derby","Serogroep B, serotype  Heidelberg","Serogroep B, serotype Typhimurium","Serogroep B, overig serotype","Serogroep C, serotype Goldcoast","Serogroep C, serotype Hadar","Serogroep C, serotype Infantis","Serogroep C, serotype Montevideo","Serogroep C, serotype Newport","Serogroep C, serotype Virchow","Serogroep C, overig serotype","Serogroep D, serotype Dublin","Serogroep D, serotype Enteritidis","Serogroep D, serotype Panama","Serogroep D, overig serotype","Serogroep E, serotype Lexington","Serogroep E, serotype Muenster","Serogroep E, serotype Senftenberg","Serogroep E, overig serotype","Restgroep \"F67\"","Onbekend"]
[null,null,null,null,null,null,null,null,null,null,null,null,"2018-01-01","2035-12-31","serum ELISA","serum BUA","mestkweek","mest PCR","sectie","overig",0,1,1000,"Serogroep B, serotype Brandenburg","Serogroep B, serotype Derby","Serogroep B, serotype  Heidelberg","Serogroep B, serotype Typhimurium","Serogroep B, overig serotype","Serogroep C, serotype Goldcoast","Serogroep C, serotype Hadar","Serogroep C, serotype Infantis","Serogroep C, serotype Montevideo","Serogroep C, serotype Newport","Serogroep C, serotype Virchow","Serogroep C, overig serotype","Serogroep D, serotype Dublin","Serogroep D, serotype Enteritidis","Serogroep D, serotype Panama","Serogroep D, overig serotype","Serogroep E, serotype Lexington","Serogroep E, serotype Muenster","Serogroep E, serotype Senftenberg","Serogroep E, overig serotype","Restgroep \"F67\"","Onbekend"]
[null,null,null,null,null,null,null,null,null,null,null,null,"2018-01-01","2035-12-31","serum ELISA","serum BUA","mestkweek","mest PCR","sectie","overig",0,1,1000,"Serogroep B, serotype Brandenburg","Serogroep B, serotype Derby","Serogroep B, serotype  Heidelberg","Serogroep B, serotype Typhimurium","Serogroep B, overig serotype","Serogroep C, serotype Goldcoast","Serogroep C, serotype Hadar","Serogroep C, serotype Infantis","Serogroep C, serotype Montevideo","Serogroep C, serotype Newport","Serogroep C, serotype Virchow","Serogroep C, overig serotype","Serogroep D, serotype Dublin","Serogroep D, serotype Enteritidis","Serogroep D, serotype Panama","Serogroep D, overig serotype","Serogroep E, serotype Lexington","Serogroep E, serotype Muenster","Serogroep E, serotype Senftenberg","Serogroep E, overig serotype","Restgroep \"F67\"","Onbekend"]
[null,null,null,null,null,null,null,null,null,null,null,null,"2018-01-01","2035-12-31","serum ELISA","serum BUA","mestkweek","mest PCR","sectie","overig",0,1,1000,"Serogroep B, serotype Brandenburg","Serogroep B, serotype Derby","Serogroep B, serotype  Heidelberg","Serogroep B, serotype Typhimurium","Serogroep B, overig serotype","Serogroep C, serotype Goldcoast","Serogroep C, serotype Hadar","Serogroep C, serotype Infantis","Serogroep C, serotype Montevideo","Serogroep C, serotype Newport","Serogroep C, serotype Virchow","Serogroep C, overig serotype","Serogroep D, serotype Dublin","Serogroep D, serotype Enteritidis","Serogroep D, serotype Panama","Serogroep D, overig serotype","Serogroep E, serotype Lexington","Serogroep E, serotype Muenster","Serogroep E, serotype Senftenberg","Serogroep E, overig serotype","Restgroep \"F67\"","Onbekend"]
[null,null,null,null,null,null,null,null,null,null,null,null,"2018-01-01","2035-12-31","serum ELISA","serum BUA","mestkweek","mest PCR","sectie","overig",0,1,1000,"Serogroep B, serotype Brandenburg","Serogroep B, serotype Derby","Serogroep B, serotype  Heidelberg","Serogroep B, serotype Typhimurium","Serogroep B, overig serotype","Serogroep C, serotype Goldcoast","Serogroep C, serotype Hadar","Serogroep C, serotype Infantis","Serogroep C, serotype Montevideo","Serogroep C, serotype Newport","Serogroep C, serotype Virchow","Serogroep C, overig serotype","Serogroep D, serotype Dublin","Serogroep D, serotype Enteritidis","Serogroep D, serotype Panama","Serogroep D, overig serotype","Serogroep E, serotype Lexington","Serogroep E, serotype Muenster","Serogroep E, serotype Senftenberg","Serogroep E, overig serotype","Restgroep \"F67\"","Onbekend"]
[null,null,null,null,null,null,null,null,null,null,null,null,"2018-01-01","2035-12-31","serum ELISA","serum BUA","mestkweek","mest PCR","sectie","overig",0,1,1000,"Serogroep B, serotype Brandenburg","Serogroep B, serotype Derby","Serogroep B, serotype  Heidelberg","Serogroep B, serotype Typhimurium","Serogroep B, overig serotype","Serogroep C, serotype Goldcoast","Serogroep C, serotype Hadar","Serogroep C, serotype Infantis","Serogroep C, serotype Montevideo","Serogroep C, serotype Newport","Serogroep C, serotype Virchow","Serogroep C, overig serotype","Serogroep D, serotype Dublin","Serogroep D, serotype Enteritidis","Serogroep D, serotype Panama","Serogroep D, overig serotype","Serogroep E, serotype Lexington","Serogroep E, serotype Muenster","Serogroep E, serotype Senftenberg","Serogroep E, overig serotype","Restgroep \"F67\"","Onbekend"]
[null,null,null,null,null,null,null,null,null,null,null,null,"2018-01-01","2035-12-31","serum ELISA","serum BUA","mestkweek","mest PCR","sectie","overig",0,1,1000,"Serogroep B, serotype Brandenburg","Serogroep B, serotype Derby","Serogroep B, serotype  Heidelberg","Serogroep B, serotype Typhimurium","Serogroep B, overig serotype","Serogroep C, serotype Goldcoast","Serogroep C, serotype Hadar","Serogroep C, serotype Infantis","Serogroep C, serotype Montevideo","Serogroep C, serotype Newport","Serogroep C, serotype Virchow","Serogroep C, overig serotype","Serogroep D, serotype Dublin","Serogroep D, serotype Enteritidis","Serogroep D, serotype Panama","Serogroep D, overig serotype","Serogroep E, serotype Lexington","Serogroep E, serotype Muenster","Serogroep E, serotype Senftenberg","Serogroep E, overig serotype","Restgroep \"F67\"","Onbekend"]
[null,null,null,null,null,null,null,null,null,null,null,null,"2018-01-01","2035-12-31","serum ELISA","serum BUA","mestkweek","mest PCR","sectie","overig",0,1,1000,"Serogroep B, serotype Brandenburg","Serogroep B, serotype Derby","Serogroep B, serotype  Heidelberg","Serogroep B, serotype Typhimurium","Serogroep B, overig serotype","Serogroep C, serotype Goldcoast","Serogroep C, serotype Hadar","Serogroep C, serotype Infantis","Serogroep C, serotype Montevideo","Serogroep C, serotype Newport","Serogroep C, serotype Virchow","Serogroep C, overig serotype","Serogroep D, serotype Dublin","Serogroep D, serotype Enteritidis","Serogroep D, serotype Panama","Serogroep D, overig serotype","Serogroep E, serotype Lexington","Serogroep E, serotype Muenster","Serogroep E, serotype Senftenberg","Serogroep E, overig serotype","Restgroep \"F67\"","Onbekend"]
[null,null,null,null,null,null,null,null,null,null,null,null,"2018-01-01","2035-12-31","serum ELISA","serum BUA","mestkweek","mest PCR","sectie","overig",0,1,1000,"Serogroep B, serotype Brandenburg","Serogroep B, serotype Derby","Serogroep B, serotype  Heidelberg","Serogroep B, serotype Typhimurium","Serogroep B, overig serotype","Serogroep C, serotype Goldcoast","Serogroep C, serotype Hadar","Serogroep C, serotype Infantis","Serogroep C, serotype Montevideo","Serogroep C, serotype Newport","Serogroep C, serotype Virchow","Serogroep C, overig serotype","Serogroep D, serotype Dublin","Serogroep D, serotype Enteritidis","Serogroep D, serotype Panama","Serogroep D, overig serotype","Serogroep E, serotype Lexington","Serogroep E, serotype Muenster","Serogroep E, serotype Senftenberg","Serogroep E, overig serotype","Restgroep \"F67\"","Onbekend"]
[null,null,null,null,null,null,null,null,null,null,null,null,"2018-01-01","2035-12-31","serum ELISA","serum BUA","mestkweek","mest PCR","sectie","overig",0,1,1000,"Serogroep B, serotype Brandenburg","Serogroep B, serotype Derby","Serogroep B, serotype  Heidelberg","Serogroep B, serotype Typhimurium","Serogroep B, overig serotype","Serogroep C, serotype Goldcoast","Serogroep C, serotype Hadar","Serogroep C, serotype Infantis","Serogroep C, serotype Montevideo","Serogroep C, serotype Newport","Serogroep C, serotype Virchow","Serogroep C, overig serotype","Serogroep D, serotype Dublin","Serogroep D, serotype Enteritidis","Serogroep D, serotype Panama","Serogroep D, overig serotype","Serogroep E, serotype Lexington","Serogroep E, serotype Muenster","Serogroep E, serotype Senftenberg","Serogroep E, overig serotype","Restgroep \"F67\"","Onbekend"]
[null,null,null,null,null,null,null,null,null,null,null,null,"2018-01-01","2035-12-31","serum ELISA","serum BUA","mestkweek","mest PCR","sectie","overig",0,1,1000,"Serogroep B, serotype Brandenburg","Serogroep B, serotype Derby","Serogroep B, serotype  Heidelberg","Serogroep B, serotype Typhimurium","Serogroep B, overig serotype","Serogroep C, serotype Goldcoast","Serogroep C, serotype Hadar","Serogroep C, serotype Infantis","Serogroep C, serotype Montevideo","Serogroep C, serotype Newport","Serogroep C, serotype Virchow","Serogroep C, overig serotype","Serogroep D, serotype Dublin","Serogroep D, serotype Enteritidis","Serogroep D, serotype Panama","Serogroep D, overig serotype","Serogroep E, serotype Lexington","Serogroep E, serotype Muenster","Serogroep E, serotype Senftenberg","Serogroep E, overig serotype","Restgroep \"F67\"","Onbekend"]
[null,null,null,null,null,null,null,null,null,null,null,null,"2018-01-01","2035-12-31","serum ELISA","serum BUA","mestkweek","mest PCR","sectie","overig",0,1,1000,"Serogroep B, serotype Brandenburg","Serogroep B, serotype Derby","Serogroep B, serotype  Heidelberg","Serogroep B, serotype Typhimurium","Serogroep B, overig serotype","Serogroep C, serotype Goldcoast","Serogroep C, serotype Hadar","Serogroep C, serotype Infantis","Serogroep C, serotype Montevideo","Serogroep C, serotype Newport","Serogroep C, serotype Virchow","Serogroep C, overig serotype","Serogroep D, serotype Dublin","Serogroep D, serotype Enteritidis","Serogroep D, serotype Panama","Serogroep D, overig serotype","Serogroep E, serotype Lexington","Serogroep E, serotype Muenster","Serogroep E, serotype Senftenberg","Serogroep E, overig serotype","Restgroep \"F67\"","Onbekend"]
[null,null,null,null,null,null,null,null,null,null,null,null,"2018-01-01","2035-12-31","serum ELISA","serum BUA","mestkweek","mest PCR","sectie","overig",0,1,1000,"Serogroep B, serotype Brandenburg","Serogroep B, serotype Derby","Serogroep B, serotype  Heidelberg","Serogroep B, serotype Typhimurium","Serogroep B, overig serotype","Serogroep C, serotype Goldcoast","Serogroep C, serotype Hadar","Serogroep C, serotype Infantis","Serogroep C, serotype Montevideo","Serogroep C, serotype Newport","Serogroep C, serotype Virchow","Serogroep C, overig serotype","Serogroep D, serotype Dublin","Serogroep D, serotype Enteritidis","Serogroep D, serotype Panama","Serogroep D, overig serotype","Serogroep E, serotype Lexington","Serogroep E, serotype Muenster","Serogroep E, serotype Senftenberg","Serogroep E, overig serotype","Restgroep \"F67\"","Onbekend"]
[null,null,null,null,null,null,null,null,null,null,null,null,"2018-01-01","2035-12-31","serum ELISA","serum BUA","mestkweek","mest PCR","sectie","overig",0,1,1000,"Serogroep B, serotype Brandenburg","Serogroep B, serotype Derby","Serogroep B, serotype  Heidelberg","Serogroep B, serotype Typhimurium","Serogroep B, overig serotype","Serogroep C, serotype Goldcoast","Serogroep C, serotype Hadar","Serogroep C, serotype Infantis","Serogroep C, serotype Montevideo","Serogroep C, serotype Newport","Serogroep C, serotype Virchow","Serogroep C, overig serotype","Serogroep D, serotype Dublin","Serogroep D, serotype Enteritidis","Serogroep D, serotype Panama","Serogroep D, overig serotype","Serogroep E, serotype Lexington","Serogroep E, serotype Muenster","Serogroep E, serotype Senftenberg","Serogroep E, overig serotype","Restgroep \"F67\"","Onbekend"]
[null,null,null,null,null,null,null,null,null,null,null,null,"2018-01-01","2035-12-31","serum ELISA","serum BUA","mestkweek","mest PCR","sectie","overig",0,1,1000,"Serogroep B, serotype Brandenburg","Serogroep B, serotype Derby","Serogroep B, serotype  Heidelberg","Serogroep B, serotype Typhimurium","Serogroep B, overig serotype","Serogroep C, serotype Goldcoast","Serogroep C, serotype Hadar","Serogroep C, serotype Infantis","Serogroep C, serotype Montevideo","Serogroep C, serotype Newport","Serogroep C, serotype Virchow","Serogroep C, overig serotype","Serogroep D, serotype Dublin","Serogroep D, serotype Enteritidis","Serogroep D, serotype Panama","Serogroep D, overig serotype","Serogroep E, serotype Lexington","Serogroep E, serotype Muenster","Serogroep E, serotype Senftenberg","Serogroep E, overig serotype","Restgroep \"F67\"","Onbekend"]
[null,null,null,null,null,null,null,null,null,null,null,null,"2018-01-01","2035-12-31","serum ELISA","serum BUA","mestkweek","mest PCR","sectie","overig",0,1,1000,"Serogroep B, serotype Brandenburg","Serogroep B, serotype Derby","Serogroep B, serotype  Heidelberg","Serogroep B, serotype Typhimurium","Serogroep B, overig serotype","Serogroep C, serotype Goldcoast","Serogroep C, serotype Hadar","Serogroep C, serotype Infantis","Serogroep C, serotype Montevideo","Serogroep C, serotype Newport","Serogroep C, serotype Virchow","Serogroep C, overig serotype","Serogroep D, serotype Dublin","Serogroep D, serotype Enteritidis","Serogroep D, serotype Panama","Serogroep D, overig serotype","Serogroep E, serotype Lexington","Serogroep E, serotype Muenster","Serogroep E, serotype Senftenberg","Serogroep E, overig serotype","Restgroep \"F67\"","Onbekend"]
[null,null,null,null,null,null,null,null,null,null,null,null,"2018-01-01","2035-12-31","serum ELISA","serum BUA","mestkweek","mest PCR","sectie","overig",0,1,1000,"Serogroep B, serotype Brandenburg","Serogroep B, serotype Derby","Serogroep B, serotype  Heidelberg","Serogroep B, serotype Typhimurium","Serogroep B, overig serotype","Serogroep C, serotype Goldcoast","Serogroep C, serotype Hadar","Serogroep C, serotype Infantis","Serogroep C, serotype Montevideo","Serogroep C, serotype Newport","Serogroep C, serotype Virchow","Serogroep C, overig serotype","Serogroep D, serotype Dublin","Serogroep D, serotype Enteritidis","Serogroep D, serotype Panama","Serogroep D, overig serotype","Serogroep E, serotype Lexington","Serogroep E, serotype Muenster","Serogroep E, serotype Senftenberg","Serogroep E, overig serotype","Restgroep \"F67\"","Onbekend"]
[null,null,null,null,null,null,null,null,null,null,null,null,"2018-01-01","2035-12-31","serum ELISA","serum BUA","mestkweek","mest PCR","sectie","overig",0,1,1000,"Serogroep B, serotype Brandenburg","Serogroep B, serotype Derby","Serogroep B, serotype  Heidelberg","Serogroep B, serotype Typhimurium","Serogroep B, overig serotype","Serogroep C, serotype Goldcoast","Serogroep C, serotype Hadar","Serogroep C, serotype Infantis","Serogroep C, serotype Montevideo","Serogroep C, serotype Newport","Serogroep C, serotype Virchow","Serogroep C, overig serotype","Serogroep D, serotype Dublin","Serogroep D, serotype Enteritidis","Serogroep D, serotype Panama","Serogroep D, overig serotype","Serogroep E, serotype Lexington","Serogroep E, serotype Muenster","Serogroep E, serotype Senftenberg","Serogroep E, overig serotype","Restgroep \"F67\"","Onbekend"]
[null,null,null,null,null,null,{"$f":"IF(SUM(G2:G36)>0,1,0)","v":0}]

{"sheet":"antibiotica vorige ronde","index":6,"n_rows":33,"n_cols":43,"rows_kept":33,"cut":false,"hidden":false,"merged":[]}
["Gevoeligheidspatroon salmonella isolaten in de vorige ronde",null,null,null,"Gevoeligheidspatroon: Gevoelig (G), Intermediair (I) of Resistent (R)*"]
[null,"Datum (dd-mm-jjjj)","Afdeling","Serotype ","Ampicilline/amoxicilline","Apramycine","Chloor-/oxy-tetracycline","Enrofloxacine","Flumequine","Gentamycine","Neomycine","(Dihydro-) streptomycine","Trimethoprim−sulfonamiden",null,null,"validatie","datum",null,"Serotype",null,null,null,null,null,null,null,null,null,null,null,null,null,null,null,null,null,null,null,null,null,"Gevoeligheid"]
[null,null,null,null,null,null,null,null,null,null,null,null,null,{"$f":"IF(AND(OR(H20=\"ja\",H20=\"nee\"),COUNTA(B3:M3)<8),1,0)","v":0},null,null,"2018-01-01","2035-12-31","Serogroep B, serotype Brandenburg","Serogroep B, serotype Derby","Serogroep B, serotype  Heidelberg","Serogroep B, serotype Typhimurium","Serogroep B, overig serotype","Serogroep C, serotype Goldcoast","Serogroep C, serotype Hadar","Serogroep C, serotype Infantis","Serogroep C, serotype Montevideo","Serogroep C, serotype Newport","Serogroep C, serotype Virchow","Serogroep C, overig serotype","Serogroep D, serotype Dublin","Serogroep D, serotype Enteritidis","Serogroep D, serotype Panama","Serogroep D, overig serotype","Serogroep E, serotype Lexington","Serogroep E, serotype Muenster","Serogroep E, serotype Senftenberg","Serogroep E, overig serotype","Restgroep \"F67\"","Onbekend","G","I","R"]
[null,null,null,null,null,null,null,null,null,null,null,null,null,null,null,null,"2018-01-01","2035-12-31","Serogroep B, serotype Brandenburg","Serogroep B, serotype Derby","Serogroep B, serotype  Heidelberg","Serogroep B, serotype Typhimurium","Serogroep B, overig serotype","Serogroep C, serotype Goldcoast","Serogroep C, serotype Hadar","Serogroep C, serotype Infantis","Serogroep C, serotype Montevideo","Serogroep C, serotype Newport","Serogroep C, serotype Virchow","Serogroep C, overig serotype","Serogroep D, serotype Dublin","Serogroep D, serotype Enteritidis","Serogroep D, serotype Panama","Serogroep D, overig serotype","Serogroep E, serotype Lexington","Serogroep E, serotype Muenster","Serogroep E, serotype Senftenberg","Serogroep E, overig serotype","Restgroep \"F67\"","Onbekend","G","I","R"]
[null,null,null,null,null,null,null,null,null,null,null,null,null,null,null,null,"2018-01-01","2035-12-31","Serogroep B, serotype Brandenburg","Serogroep B, serotype Derby","Serogroep B, serotype  Heidelberg","Serogroep B, serotype Typhimurium","Serogroep B, overig serotype","Serogroep C, serotype Goldcoast","Serogroep C, serotype Hadar","Serogroep C, serotype Infantis","Serogroep C, serotype Montevideo","Serogroep C, serotype Newport","Serogroep C, serotype Virchow","Serogroep C, overig serotype","Serogroep D, serotype Dublin","Serogroep D, serotype Enteritidis","Serogroep D, serotype Panama","Serogroep D, overig serotype","Serogroep E, serotype Lexington","Serogroep E, serotype Muenster","Serogroep E, serotype Senftenberg","Serogroep E, overig serotype","Restgroep \"F67\"","Onbekend","G","I","R"]
[null,null,null,null,null,null,null,null,null,null,null,null,null,null,null,null,"2018-01-01","2035-12-31","Serogroep B, serotype Brandenburg","Serogroep B, serotype Derby","Serogroep B, serotype  Heidelberg","Serogroep B, serotype Typhimurium","Serogroep B, overig serotype","Serogroep C, serotype Goldcoast","Serogroep C, serotype Hadar","Serogroep C, serotype Infantis","Serogroep C, serotype Montevideo","Serogroep C, serotype Newport","Serogroep C, serotype Virchow","Serogroep C, overig serotype","Serogroep D, serotype Dublin","Serogroep D, serotype Enteritidis","Serogroep D, serotype Panama","Serogroep D, overig serotype","Serogroep E, serotype Lexington","Serogroep E, serotype Muenster","Serogroep E, serotype Senftenberg","Serogroep E, overig serotype","Restgroep \"F67\"","Onbekend","G","I","R"]
[null,null,null,null,null,null,null,null,null,null,null,null,null,null,null,null,"2018-01-01","2035-12-31","Serogroep B, serotype Brandenburg","Serogroep B, serotype Derby","Serogroep B, serotype  Heidelberg","Serogroep B, serotype Typhimurium","Serogroep B, overig serotype","Serogroep C, serotype Goldcoast","Serogroep C, serotype Hadar","Serogroep C, serotype Infantis","Serogroep C, serotype Montevideo","Serogroep C, serotype Newport","Serogroep C, serotype Virchow","Serogroep C, overig serotype","Serogroep D, serotype Dublin","Serogroep D, serotype Enteritidis","Serogroep D, serotype Panama","Serogroep D, overig serotype","Serogroep E, serotype Lexington","Serogroep E, serotype Muenster","Serogroep E, serotype Senftenberg","Serogroep E, overig serotype","Restgroep \"F67\"","Onbekend","G","I","R"]
[null,null,null,null,null,null,null,null,null,null,null,null,null,null,null,null,"2018-01-01","2035-12-31","Serogroep B, serotype Brandenburg","Serogroep B, serotype Derby","Serogroep B, serotype  Heidelberg","Serogroep B, serotype Typhimurium","Serogroep B, overig serotype","Serogroep C, serotype Goldcoast","Serogroep C, serotype Hadar","Serogroep C, serotype Infantis","Serogroep C, serotype Montevideo","Serogroep C, serotype Newport","Serogroep C, serotype Virchow","Serogroep C, overig serotype","Serogroep D, serotype Dublin","Serogroep D, serotype Enteritidis","Serogroep D, serotype Panama","Serogroep D, overig serotype","Serogroep E, serotype Lexington","Serogroep E, serotype Muenster","Serogroep E, serotype Senftenberg","Serogroep E, overig serotype","Restgroep \"F67\"","Onbekend","G","I","R"]
[null,null,null,null,null,null,null,null,null,null,null,null,null,null,null,null,"2018-01-01","2035-12-31","Serogroep B, serotype Brandenburg","Serogroep B, serotype Derby","Serogroep B, serotype  Heidelberg","Serogroep B, serotype Typhimurium","Serogroep B, overig serotype","Serogroep C, serotype Goldcoast","Serogroep C, serotype Hadar","Serogroep C, serotype Infantis","Serogroep C, serotype Montevideo","Serogroep C, serotype Newport","Serogroep C, serotype Virchow","Serogroep C, overig serotype","Serogroep D, serotype Dublin","Serogroep D, serotype Enteritidis","Serogroep D, serotype Panama","Serogroep D, overig serotype","Serogroep E, serotype Lexington","Serogroep E, serotype Muenster","Serogroep E, serotype Senftenberg","Serogroep E, overig serotype","Restgroep \"F67\"","Onbekend","G","I","R"]
[null,null,null,null,null,null,null,null,null,null,null,null,null,null,null,null,"2018-01-01","2035-12-31","Serogroep B, serotype Brandenburg","Serogroep B, serotype Derby","Serogroep B, serotype  Heidelberg","Serogroep B, serotype Typhimurium","Serogroep B, overig serotype","Serogroep C, serotype Goldcoast","Serogroep C, serotype Hadar","Serogroep C, serotype Infantis","Serogroep C, serotype Montevideo","Serogroep C, serotype Newport","Serogroep C, serotype Virchow","Serogroep C, overig serotype","Serogroep D, serotype Dublin","Serogroep D, serotype Enteritidis","Serogroep D, serotype Panama","Serogroep D, overig serotype","Serogroep E, serotype Lexington","Serogroep E, serotype Muenster","Serogroep E, serotype Senftenberg","Serogroep E, overig serotype","Restgroep \"F67\"","Onbekend","G","I","R"]
[null,null,null,null,null,null,null,null,null,null,null,null,null,null,null,null,"2018-01-01","2035-12-31","Serogroep B, serotype Brandenburg","Serogroep B, serotype Derby","Serogroep B, serotype  Heidelberg","Serogroep B, serotype Typhimurium","Serogroep B, overig serotype","Serogroep C, serotype Goldcoast","Serogroep C, serotype Hadar","Serogroep C, serotype Infantis","Serogroep C, serotype Montevideo","Serogroep C, serotype Newport","Serogroep C, serotype Virchow","Serogroep C, overig serotype","Serogroep D, serotype Dublin","Serogroep D, serotype Enteritidis","Serogroep D, serotype Panama","Serogroep D, overig serotype","Serogroep E, serotype Lexington","Serogroep E, serotype Muenster","Serogroep E, serotype Senftenberg","Serogroep E, overig serotype","Restgroep \"F67\"","Onbekend","G","I","R"]
[null,null,null,null,null,null,null,null,null,null,null,null,null,null,null,null,"2018-01-01","2035-12-31","Serogroep B, serotype Brandenburg","Serogroep B, serotype Derby","Serogroep B, serotype  Heidelberg","Serogroep B, serotype Typhimurium","Serogroep B, overig serotype","Serogroep C, serotype Goldcoast","Serogroep C, serotype Hadar","Serogroep C, serotype Infantis","Serogroep C, serotype Montevideo","Serogroep C, serotype Newport","Serogroep C, serotype Virchow","Serogroep C, overig serotype","Serogroep D, serotype Dublin","Serogroep D, serotype Enteritidis","Serogroep D, serotype Panama","Serogroep D, overig serotype","Serogroep E, serotype Lexington","Serogroep E, serotype Muenster","Serogroep E, serotype Senftenberg","Serogroep E, overig serotype","Restgroep \"F67\"","Onbekend","G","I","R"]
[null,null,null,null,null,null,null,null,null,null,null,null,null,null,null,null,"2018-01-01","2035-12-31","Serogroep B, serotype Brandenburg","Serogroep B, serotype Derby","Serogroep B, serotype  Heidelberg","Serogroep B, serotype Typhimurium","Serogroep B, overig serotype","Serogroep C, serotype Goldcoast","Serogroep C, serotype Hadar","Serogroep C, serotype Infantis","Serogroep C, serotype Montevideo","Serogroep C, serotype Newport","Serogroep C, serotype Virchow","Serogroep C, overig serotype","Serogroep D, serotype Dublin","Serogroep D, serotype Enteritidis","Serogroep D, serotype Panama","Serogroep D, overig serotype","Serogroep E, serotype Lexington","Serogroep E, serotype Muenster","Serogroep E, serotype Senftenberg","Serogroep E, overig serotype","Restgroep \"F67\"","Onbekend","G","I","R"]
[null,null,null,null,null,null,null,null,null,null,null,null,null,null,null,null,"2018-01-01","2035-12-31","Serogroep B, serotype Brandenburg","Serogroep B, serotype Derby","Serogroep B, serotype  Heidelberg","Serogroep B, serotype Typhimurium","Serogroep B, overig serotype","Serogroep C, serotype Goldcoast","Serogroep C, serotype Hadar","Serogroep C, serotype Infantis","Serogroep C, serotype Montevideo","Serogroep C, serotype Newport","Serogroep C, serotype Virchow","Serogroep C, overig serotype","Serogroep D, serotype Dublin","Serogroep D, serotype Enteritidis","Serogroep D, serotype Panama","Serogroep D, overig serotype","Serogroep E, serotype Lexington","Serogroep E, serotype Muenster","Serogroep E, serotype Senftenberg","Serogroep E, overig serotype","Restgroep \"F67\"","Onbekend","G","I","R"]
[null,null,null,null,null,null,null,null,null,null,null,null,null,null,null,null,"2018-01-01","2035-12-31","Serogroep B, serotype Brandenburg","Serogroep B, serotype Derby","Serogroep B, serotype  Heidelberg","Serogroep B, serotype Typhimurium","Serogroep B, overig serotype","Serogroep C, serotype Goldcoast","Serogroep C, serotype Hadar","Serogroep C, serotype Infantis","Serogroep C, serotype Montevideo","Serogroep C, serotype Newport","Serogroep C, serotype Virchow","Serogroep C, overig serotype","Serogroep D, serotype Dublin","Serogroep D, serotype Enteritidis","Serogroep D, serotype Panama","Serogroep D, overig serotype","Serogroep E, serotype Lexington","Serogroep E, serotype Muenster","Serogroep E, serotype Senftenberg","Serogroep E, overig serotype","Restgroep \"F67\"","Onbekend","G","I","R"]
[]
["Behandeling met antibiotica in de vorige ronde"]
["Is in de vorige ronde een behandeling met antibiotica tegen salmonellose uitgevoerd? (ja / nee)",null,null,null,null,null,null,null,null,null,null,null,null,{"$f":"IF(COUNTA(B18)<1,1,0)","v":1},null,"validatie","ja","nee"]
["Zo ja, vul in:","Afdeling","Startdatum (dd-mm-jjjj)","Einddatum (dd-mm-jjjj)","Individuele of koppel-behandeling","Toedieningswijze","Middel","Middel past bij vastgesteld gevoeligheidspatroon*","Waargenomen effect",null,null,null,null,null,null,"validatie","datum",null,"indiv of koppel",null,"middel past"]
[null,null,null,null,null,null,null,null,null,null,null,null,null,{"$f":"IF(AND(B18=\"ja\",COUNTA(B20:I20<8)),1,0)","v":0},null,null,"2018-01-01","2035-12-31","indiv","koppel","ja","nee","onbekend"]
[null,null,null,null,null,null,null,null,null,null,null,null,null,null,null,null,"2018-01-01","2035-12-31","indiv","koppel","ja","nee","onbekend"]
[null,null,null,null,null,null,null,null,null,null,null,null,null,null,null,null,"2018-01-01","2035-12-31","indiv","koppel","ja","nee","onbekend"]
[null,null,null,null,null,null,null,null,null,null,null,null,null,null,null,null,"2018-01-01","2035-12-31","indiv","koppel","ja","nee","onbekend"]
[null,null,null,null,null,null,null,null,null,null,null,null,null,null,null,null,"2018-01-01","2035-12-31","indiv","koppel","ja","nee","onbekend"]
[null,null,null,null,null,null,null,null,null,null,null,null,null,null,null,null,"2018-01-01","2035-12-31","indiv","koppel","ja","nee","onbekend"]
[null,null,null,null,null,null,null,null,null,null,null,null,null,null,null,null,"2018-01-01","2035-12-31","indiv","koppel","ja","nee","onbekend"]
[null,null,null,null,null,null,null,null,null,null,null,null,null,null,null,null,"2018-01-01","2035-12-31","indiv","koppel","ja","nee","onbekend"]
[null,null,null,null,null,null,null,null,null,null,null,null,null,null,null,null,"2018-01-01","2035-12-31","indiv","koppel","ja","nee","onbekend"]
[null,null,null,null,null,null,null,null,null,null,null,null,null,null,null,null,"2018-01-01","2035-12-31","indiv","koppel","ja","nee","onbekend"]
[null,null,null,null,null,null,null,null,null,null,null,null,null,null,null,null,"2018-01-01","2035-12-31","indiv","koppel","ja","nee","onbekend"]
["*Gevoeligheidspatroon van isolaten uit monsters die vóór of op de startdatum van de behandeling zijn genomen (incl. uitslagen die pas later bekend zijn geworden). Kruis ‘Onbekend’ aan als er geen gevoeligheidsbepaling op isolaten uit dergelijke monsters is uitgevoerd."]
[]
[null,null,null,null,null,null,null,null,null,null,null,null,null,{"$f":"IF(SUM(N3:N31)>0,1,0)","v":1}]

{"sheet":"antibiotica huidige ronde","index":7,"n_rows":33,"n_cols":43,"rows_kept":33,"cut":false,"hidden":false,"merged":[]}
["Gevoeligheidspatroon salmonella isolaten in de huidige ronde",null,null,null,"Gevoeligheidspatroon: Gevoelig (G), Intermediair (I) of Resistent (R)*"]
[null,"Datum (dd-mm-jjjj)","Afdeling","Serotype ","Ampicilline/amoxicilline","Apramycine","Chloor-/oxy-tetracycline","Enrofloxacine","Flumequine","Gentamycine","Neomycine","(Dihydro-) streptomycine","Trimethoprim−sulfonamiden",null,null,"validatie","datum",null,"Serotype",null,null,null,null,null,null,null,null,null,null,null,null,null,null,null,null,null,null,null,null,null,"Gevoeligheid"]
[null,null,null,null,null,null,null,null,null,null,null,null,null,{"$f":"IF(AND(OR(H20=\"ja\",H20=\"nee\"),COUNTA(B3:M3)<8),1,0)","v":0},null,null,"2018-01-01","2035-12-31","Serogroep B, serotype Brandenburg","Serogroep B, serotype Derby","Serogroep B, serotype  Heidelberg","Serogroep B, serotype Typhimurium","Serogroep B, overig serotype","Serogroep C, serotype Goldcoast","Serogroep C, serotype Hadar","Serogroep C, serotype Infantis","Serogroep C, serotype Montevideo","Serogroep C, serotype Newport","Serogroep C, serotype Virchow","Serogroep C, overig serotype","Serogroep D, serotype Dublin","Serogroep D, serotype Enteritidis","Serogroep D, serotype Panama","Serogroep D, overig serotype","Serogroep E, serotype Lexington","Serogroep E, serotype Muenster","Serogroep E, serotype Senftenberg","Serogroep E, overig serotype","Restgroep \"F67\"","Onbekend","G","I","R"]
[null,null,null,null,null,null,null,null,null,null,null,null,null,null,null,null,"2018-01-01","2035-12-31","Serogroep B, serotype Brandenburg","Serogroep B, serotype Derby","Serogroep B, serotype  Heidelberg","Serogroep B, serotype Typhimurium","Serogroep B, overig serotype","Serogroep C, serotype Goldcoast","Serogroep C, serotype Hadar","Serogroep C, serotype Infantis","Serogroep C, serotype Montevideo","Serogroep C, serotype Newport","Serogroep C, serotype Virchow","Serogroep C, overig serotype","Serogroep D, serotype Dublin","Serogroep D, serotype Enteritidis","Serogroep D, serotype Panama","Serogroep D, overig serotype","Serogroep E, serotype Lexington","Serogroep E, serotype Muenster","Serogroep E, serotype Senftenberg","Serogroep E, overig serotype","Restgroep \"F67\"","Onbekend","G","I","R"]
[null,null,null,null,null,null,null,null,null,null,null,null,null,null,null,null,"2018-01-01","2035-12-31","Serogroep B, serotype Brandenburg","Serogroep B, serotype Derby","Serogroep B, serotype  Heidelberg","Serogroep B, serotype Typhimurium","Serogroep B, overig serotype","Serogroep C, serotype Goldcoast","Serogroep C, serotype Hadar","Serogroep C, serotype Infantis","Serogroep C, serotype Montevideo","Serogroep C, serotype Newport","Serogroep C, serotype Virchow","Serogroep C, overig serotype","Serogroep D, serotype Dublin","Serogroep D, serotype Enteritidis","Serogroep D, serotype Panama","Serogroep D, overig serotype","Serogroep E, serotype Lexington","Serogroep E, serotype Muenster","Serogroep E, serotype Senftenberg","Serogroep E, overig serotype","Restgroep \"F67\"","Onbekend","G","I","R"]
[null,null,null,null,null,null,null,null,null,null,null,null,null,null,null,null,"2018-01-01","2035-12-31","Serogroep B, serotype Brandenburg","Serogroep B, serotype Derby","Serogroep B, serotype  Heidelberg","Serogroep B, serotype Typhimurium","Serogroep B, overig serotype","Serogroep C, serotype Goldcoast","Serogroep C, serotype Hadar","Serogroep C, serotype Infantis","Serogroep C, serotype Montevideo","Serogroep C, serotype Newport","Serogroep C, serotype Virchow","Serogroep C, overig serotype","Serogroep D, serotype Dublin","Serogroep D, serotype Enteritidis","Serogroep D, serotype Panama","Serogroep D, overig serotype","Serogroep E, serotype Lexington","Serogroep E, serotype Muenster","Serogroep E, serotype Senftenberg","Serogroep E, overig serotype","Restgroep \"F67\"","Onbekend","G","I","R"]
[null,null,null,null,null,null,null,null,null,null,null,null,null,null,null,null,"2018-01-01","2035-12-31","Serogroep B, serotype Brandenburg","Serogroep B, serotype Derby","Serogroep B, serotype  Heidelberg","Serogroep B, serotype Typhimurium","Serogroep B, overig serotype","Serogroep C, serotype Goldcoast","Serogroep C, serotype Hadar","Serogroep C, serotype Infantis","Serogroep C, serotype Montevideo","Serogroep C, serotype Newport","Serogroep C, serotype Virchow","Serogroep C, overig serotype","Serogroep D, serotype Dublin","Serogroep D, serotype Enteritidis","Serogroep D, serotype Panama","Serogroep D, overig serotype","Serogroep E, serotype Lexington","Serogroep E, serotype Muenster","Serogroep E, serotype Senftenberg","Serogroep E, overig serotype","Restgroep \"F67\"","Onbekend","G","I","R"]
[null,null,null,null,null,null,null,null,null,null,null,null,null,null,null,null,"2018-01-01","2035-12-31","Serogroep B, serotype Brandenburg","Serogroep B, serotype Derby","Serogroep B, serotype  Heidelberg","Serogroep B, serotype Typhimurium","Serogroep B, overig serotype","Serogroep C, serotype Goldcoast","Serogroep C, serotype Hadar","Serogroep C, serotype Infantis","Serogroep C, serotype Montevideo","Serogroep C, serotype Newport","Serogroep C, serotype Virchow","Serogroep C, overig serotype","Serogroep D, serotype Dublin","Serogroep D, serotype Enteritidis","Serogroep D, serotype Panama","Serogroep D, overig serotype","Serogroep E, serotype Lexington","Serogroep E, serotype Muenster","Serogroep E, serotype Senftenberg","Serogroep E, overig serotype","Restgroep \"F67\"","Onbekend","G","I","R"]
[null,null,null,null,null,null,null,null,null,null,null,null,null,null,null,null,"2018-01-01","2035-12-31","Serogroep B, serotype Brandenburg","Serogroep B, serotype Derby","Serogroep B, serotype  Heidelberg","Serogroep B, serotype Typhimurium","Serogroep B, overig serotype","Serogroep C, serotype Goldcoast","Serogroep C, serotype Hadar","Serogroep C, serotype Infantis","Serogroep C, serotype Montevideo","Serogroep C, serotype Newport","Serogroep C, serotype Virchow","Serogroep C, overig serotype","Serogroep D, serotype Dublin","Serogroep D, serotype Enteritidis","Serogroep D, serotype Panama","Serogroep D, overig serotype","Serogroep E, serotype Lexington","Serogroep E, serotype Muenster","Serogroep E, serotype Senftenberg","Serogroep E, overig serotype","Restgroep \"F67\"","Onbekend","G","I","R"]
[null,null,null,null,null,null,null,null,null,null,null,null,null,null,null,null,"2018-01-01","2035-12-31","Serogroep B, serotype Brandenburg","Serogroep B, serotype Derby","Serogroep B, serotype  Heidelberg","Serogroep B, serotype Typhimurium","Serogroep B, overig serotype","Serogroep C, serotype Goldcoast","Serogroep C, serotype Hadar","Serogroep C, serotype Infantis","Serogroep C, serotype Montevideo","Serogroep C, serotype Newport","Serogroep C, serotype Virchow","Serogroep C, overig serotype","Serogroep D, serotype Dublin","Serogroep D, serotype Enteritidis","Serogroep D, serotype Panama","Serogroep D, overig serotype","Serogroep E, serotype Lexington","Serogroep E, serotype Muenster","Serogroep E, serotype Senftenberg","Serogroep E, overig serotype","Restgroep \"F67\"","Onbekend","G","I","R"]
[null,null,null,null,null,null,null,null,null,null,null,null,null,null,null,null,"2018-01-01","2035-12-31","Serogroep B, serotype Brandenburg","Serogroep B, serotype Derby","Serogroep B, serotype  Heidelberg","Serogroep B, serotype Typhimurium","Serogroep B, overig serotype","Serogroep C, serotype Goldcoast","Serogroep C, serotype Hadar","Serogroep C, serotype Infantis","Serogroep C, serotype Montevideo","Serogroep C, serotype Newport","Serogroep C, serotype Virchow","Serogroep C, overig serotype","Serogroep D, serotype Dublin","Serogroep D, serotype Enteritidis","Serogroep D, serotype Panama","Serogroep D, overig serotype","Serogroep E, serotype Lexington","Serogroep E, serotype Muenster","Serogroep E, serotype Senftenberg","Serogroep E, overig serotype","Restgroep \"F67\"","Onbekend","G","I","R"]
[null,null,null,null,null,null,null,null,null,null,null,null,null,null,null,null,"2018-01-01","2035-12-31","Serogroep B, serotype Brandenburg","Serogroep B, serotype Derby","Serogroep B, serotype  Heidelberg","Serogroep B, serotype Typhimurium","Serogroep B, overig serotype","Serogroep C, serotype Goldcoast","Serogroep C, serotype Hadar","Serogroep C, serotype Infantis","Serogroep C, serotype Montevideo","Serogroep C, serotype Newport","Serogroep C, serotype Virchow","Serogroep C, overig serotype","Serogroep D, serotype Dublin","Serogroep D, serotype Enteritidis","Serogroep D, serotype Panama","Serogroep D, overig serotype","Serogroep E, serotype Lexington","Serogroep E, serotype Muenster","Serogroep E, serotype Senftenberg","Serogroep E, overig serotype","Restgroep \"F67\"","Onbekend","G","I","R"]
[null,null,null,null,null,null,null,null,null,null,null,null,null,null,null,null,"2018-01-01","2035-12-31","Serogroep B, serotype Brandenburg","Serogroep B, serotype Derby","Serogroep B, serotype  Heidelberg","Serogroep B, serotype Typhimurium","Serogroep B, overig serotype","Serogroep C, serotype Goldcoast","Serogroep C, serotype Hadar","Serogroep C, serotype Infantis","Serogroep C, serotype Montevideo","Serogroep C, serotype Newport","Serogroep C, serotype Virchow","Serogroep C, overig serotype","Serogroep D, serotype Dublin","Serogroep D, serotype Enteritidis","Serogroep D, serotype Panama","Serogroep D, overig serotype","Serogroep E, serotype Lexington","Serogroep E, serotype Muenster","Serogroep E, serotype Senftenberg","Serogroep E, overig serotype","Restgroep \"F67\"","Onbekend","G","I","R"]
[null,null,null,null,null,null,null,null,null,null,null,null,null,null,null,null,"2018-01-01","2035-12-31","Serogroep B, serotype Brandenburg","Serogroep B, serotype Derby","Serogroep B, serotype  Heidelberg","Serogroep B, serotype Typhimurium","Serogroep B, overig serotype","Serogroep C, serotype Goldcoast","Serogroep C, serotype Hadar","Serogroep C, serotype Infantis","Serogroep C, serotype Montevideo","Serogroep C, serotype Newport","Serogroep C, serotype Virchow","Serogroep C, overig serotype","Serogroep D, serotype Dublin","Serogroep D, serotype Enteritidis","Serogroep D, serotype Panama","Serogroep D, overig serotype","Serogroep E, serotype Lexington","Serogroep E, serotype Muenster","Serogroep E, serotype Senftenberg","Serogroep E, overig serotype","Restgroep \"F67\"","Onbekend","G","I","R"]
[null,null,null,null,null,null,null,null,null,null,null,null,null,null,null,null,"2018-01-01","2035-12-31","Serogroep B, serotype Brandenburg","Serogroep B, serotype Derby","Serogroep B, serotype  Heidelberg","Serogroep B, serotype Typhimurium","Serogroep B, overig serotype","Serogroep C, serotype Goldcoast","Serogroep C, serotype Hadar","Serogroep C, serotype Infantis","Serogroep C, serotype Montevideo","Serogroep C, serotype Newport","Serogroep C, serotype Virchow","Serogroep C, overig serotype","Serogroep D, serotype Dublin","Serogroep D, serotype Enteritidis","Serogroep D, serotype Panama","Serogroep D, overig serotype","Serogroep E, serotype Lexington","Serogroep E, serotype Muenster","Serogroep E, serotype Senftenberg","Serogroep E, overig serotype","Restgroep \"F67\"","Onbekend","G","I","R"]
[]
["Behandeling met antibiotica in de huidige ronde"]
["Is in de huidige ronde een behandeling met antibiotica tegen salmonellose uitgevoerd? (ja / nee)",null,null,null,null,null,null,null,null,null,null,null,null,{"$f":"IF(COUNTA(B18)<1,1,0)","v":1},null,"validatie","ja","nee"]
["Zo ja, vul in:","Afdeling","Startdatum (dd-mm-jjjj)","Einddatum (dd-mm-jjjj)","Individuele of koppel-behandeling","Toedieningswijze","Middel","Middel past bij vastgesteld gevoeligheidspatroon*","Waargenomen effect",null,null,null,null,null,null,"validatie","datum",null,"indiv of koppel",null,"middel past"]
[null,null,null,null,null,null,null,null,null,null,null,null,null,{"$f":"IF(AND(B18=\"ja\",COUNTA(B20:I20<8)),1,0)","v":0},null,null,"2018-01-01","2035-12-31","indiv","koppel","ja","nee","onbekend"]
[null,null,null,null,null,null,null,null,null,null,null,null,null,null,null,null,"2018-01-01","2035-12-31","indiv","koppel","ja","nee","onbekend"]
[null,null,null,null,null,null,null,null,null,null,null,null,null,null,null,null,"2018-01-01","2035-12-31","indiv","koppel","ja","nee","onbekend"]
[null,null,null,null,null,null,null,null,null,null,null,null,null,null,null,null,"2018-01-01","2035-12-31","indiv","koppel","ja","nee","onbekend"]
[null,null,null,null,null,null,null,null,null,null,null,null,null,null,null,null,"2018-01-01","2035-12-31","indiv","koppel","ja","nee","onbekend"]
[null,null,null,null,null,null,null,null,null,null,null,null,null,null,null,null,"2018-01-01","2035-12-31","indiv","koppel","ja","nee","onbekend"]
[null,null,null,null,null,null,null,null,null,null,null,null,null,null,null,null,"2018-01-01","2035-12-31","indiv","koppel","ja","nee","onbekend"]
[null,null,null,null,null,null,null,null,null,null,null,null,null,null,null,null,"2018-01-01","2035-12-31","indiv","koppel","ja","nee","onbekend"]
[null,null,null,null,null,null,null,null,null,null,null,null,null,null,null,null,"2018-01-01","2035-12-31","indiv","koppel","ja","nee","onbekend"]
[null,null,null,null,null,null,null,null,null,null,null,null,null,null,null,null,"2018-01-01","2035-12-31","indiv","koppel","ja","nee","onbekend"]
[null,null,null,null,null,null,null,null,null,null,null,null,null,null,null,null,"2018-01-01","2035-12-31","indiv","koppel","ja","nee","onbekend"]
["*Gevoeligheidspatroon van isolaten uit monsters die vóór of op de startdatum van de behandeling zijn genomen (incl. uitslagen die pas later bekend zijn geworden). Kruis ‘Onbekend’ aan als er geen gevoeligheidsbepaling op isolaten uit dergelijke monsters is uitgevoerd."]
[]
[null,null,null,null,null,null,null,null,null,null,null,null,null,{"$f":"IF(SUM(N3:N31)>0,1,0)","v":1}]

{"sheet":"overige behandelingen","index":8,"n_rows":15,"n_cols":11,"rows_kept":15,"cut":false,"hidden":false,"merged":[[6,3,10,3]]}
[null,"Vorige ronde","Huidige ronde","Toelichting"]
["Welke andere curatieve/preventieve maatregelen tegen salmonellose zijn uitgevoerd? (Bijv. bacteriofagen, vaccinatie, probiotica)",null,null,null,null,null,"Validatie"]
["Uitgevoerde vaccinaties",null,null,"Vul 'Geen' in als er niet is gevaccineerd",null,null,null,"Salmopast","Bovivac-S","Anders","Geen"]
["indien anders, te weten:",null,null,null,{"$f":"IF(OR(AND(B4=\"\",B3=\"Anders\"),AND(C4=\"\",C3=\"Anders\")),1,0)","v":0}]
["Datum eventuele 1e vaccinatie (dd-mm-jjjj)",null,null,null,{"$f":"IF(OR(AND(B3<>\"Geen\",B5=\"\"),AND(C3<>\"Geen\",C5=\"\")),1,0)","v":1},null,null,"2015-01-01","2035-12-31"]
["Datum eventuele booster (dd-mm-jjjj)",null,null,null,{"$f":"IF(OR(AND(B5<>\"\",B6<>\"\",B6<B5),AND(C5<>\"\",C6<>\"\",C6<C5)),1,0)","v":0},null,null,"2025-01-01","2035-12-31"]
["Wat is het ijzerbeleid?",null,null,"Meerdere antwoorden zijn mogelijk, als een antwoord van toepassing is, vul dan een '1' in.",{"$f":"IF(OR(SUM(B8:B11)<1,SUM(C8:C11)<1),1,0)","v":1}]
["Individuele bloedmonstername en correctie",0,0,null,null,null,null,0,1]
["Generieke ijzerinjectie",0,0,null,null,null,null,0,1]
["Orale ijzersuppletie",0,0,null,null,null,null,0,1]
["Anders",0,0,null,null,null,null,0,1]
["indien anders, te weten:",null,null,null,{"$f":"IF(OR(AND(B11=1,B12=\"\"),AND(C11=1,C12=\"\")),1,0)","v":0}]
["IJzersuppletie wordt nauwkeurig volgens een bedrijfsspecifiek advies van de kalvereigenaar en/of voeradviseur uitgevoerd (ja/nee)",null,null,null,{"$f":"IF(COUNTA(B13:C13)<2,1,0)","v":1},null,null,"ja","nee"]
["Opmerkingen en adviezen m.b.t. behandelingen"]
[null,null,null,null,{"$f":"IF(SUM(E1:E14)>0,1,0)","v":1}]

{"sheet":"probleemdefinitie","index":9,"n_rows":8,"n_cols":3,"rows_kept":8,"cut":false,"hidden":false,"merged":[]}
["Probleemdefinitie m.b.t. salmonellose op het bedrijf"]
["Formuleer hier een concrete probleemstelling in enkele zinnen. Benoem:\n•\t  Hoe lang het probleem al speelt\n•\t  Welke dieren zijn aangedaan (leeftijd/afdeling/stal)\n•\t  De klachten en de ernst van de klachten\n•\t  Welke therapieën of preventieve maatregelen in het verleden succesvol waren (of juist niet)\n•\t  Wat de kalverhouder wil bereiken met de aanpak van salmonellose",null,"w["]
[null,null,{"$f":"IF(COUNTA(B3)<1,1,0)","v":1}]
[null,null,1]
[null,null,1]
[null,null,1]
[null,null,1]
[null,null,{"$f":"IF(SUM(C1:C7)>0,1,0)","v":1}]

{"sheet":"Insleep","index":10,"n_rows":24,"n_cols":25,"rows_kept":24,"cut":false,"hidden":false,"merged":[]}
["Nr","Vraag","Beoordeling","Aanvullende maatregel(en) zijn wenselijk (vul dan '1' in)","Maatregel op korte termijn uitvoeren (vul dan '1' in)","Toelichting maatregel",null,null,null,null,null,"0/1","ja/nee","ja/nee/nvt",null,null,null,"Preferente antwoord","Tellen als MTR","Tellen als MTR1","Tellen als RF","Tonen op opvolgplan","RF op opvolgplan","Antwoord RF op opvolgplan","Toelichting op opvolgplan"]
[1,"Iedereen die in de stal(len) komt, betreedt het bedrijf via een werkende hygiënesluis waarbij handen gewassen worden",null,0,0,null,{"$f":"IF(COUNTA(C2)=0,1,0)","v":1},null,null,null,null,0,"ja","ja",null,null,null,"ja",{"$f":"D2","v":0},{"$f":"E2","v":0},{"$f":"IF(S2>0,1,IF(R2<>C2,1,0))","v":1},{"$f":"IF(S2>0,1,0)","v":0},{"$f":"B2","v":"Iedereen die in de stal(len) komt, betreedt het bedrijf via een werkende hygiënesluis waarbij handen gewassen worden"},{"$f":"C2","v":0},{"$f":"F2","v":0}]
[2,"Bloedtappers maken gebruik van schone bedrijfskleding en -laarzen van het bedrijf",null,0,0,null,1,null,null,null,null,1,"nee","nee",null,null,null,"ja",{"$f":"D3","v":0},0,{"$f":"IF(S3>0,1,IF(R3<>C3,1,0))","v":1},{"$f":"IF(S3>0,1,0)","v":0},{"$f":"B3","v":"Bloedtappers maken gebruik van schone bedrijfskleding en -laarzen van het bedrijf"},{"$f":"C3","v":0},{"$f":"F3","v":0}]
[3,"Iedereen die in de stal(len) komt maakt gebruik van schone bedrijfskleding en- laarzen van het bedrijf, inclusief de eigen medewerkers",null,0,0,null,1,null,null,null,null,null,null,"nvt",null,null,null,"ja",0,0,1,0,"Iedereen die in de stal(len) komt maakt gebruik van schone bedrijfskleding en- laarzen van het bedrijf, inclusief de eigen medewerkers",0,0]
[4,"Er is overlast van ongedierte",null,0,0,null,1,null,null,null,null,null,null,null,null,null,null,"nee",0,0,1,0,"Er is overlast van ongedierte",0,0]
[5,"Ongedierte wordt professioneel bestreden door een erkende ongediertebestrijder waarbij maandelijkse controles plaatsvinden",null,0,0,"jksdf;jg;dfjklg",1,null,null,null,null,null,null,null,null,null,null,"ja",0,0,1,0,"Ongedierte wordt professioneel bestreden door een erkende ongediertebestrijder waarbij maandelijkse controles plaatsvinden",0,"jksdf;jg;dfjklg"]
[6,"Het erf direct rondom de kalverstallen is vrij van schuilmogelijkheden voor ongedierte",null,0,0,null,1,null,null,null,null,null,null,null,null,null,null,"ja",0,0,1,0,"Het erf direct rondom de kalverstallen is vrij van schuilmogelijkheden voor ongedierte",0,{"$f":"F7","v":0}]
[7,"Gemorste voerresten worden, zowel buiten als binnen de stallen, dagelijks verwijderd",null,0,0,null,1,null,null,null,null,null,null,null,null,null,null,"ja",0,0,1,0,"Gemorste voerresten worden, zowel buiten als binnen de stallen, dagelijks verwijderd",0,0]
[8,"Er is overlast van vogels in de stallen",null,0,0,null,1,null,null,null,null,null,null,null,null,null,null,"nee",{"$f":"IF(SUM(D9:D10)>0,1,0)","v":0},{"$f":"IF(SUM(E9:E10)>0,1,0)","v":0},1,{"$f":"IF(S9+S10>0,1,0)","v":0},"Er is overlast van vogels in de stallen",0,0]
["8a","Er zijn maatregelen genomen om vogels uit de stallen te weren",null,0,0,null,{"$f":"IF(AND(C9=\"ja\",COUNTA(C10)=0),1,0)","v":0},null,null,null,null,null,null,null,null,null,null,"ja",null,null,null,{"$f":"IF(S9+S10>0,1,0)","v":0},"Er zijn maatregelen genomen om vogels uit de stallen te weren",0,0]
[9,"Er is overlast van vliegen",null,0,0,null,{"$f":"IF(COUNTA(C11)=0,1,0)","v":1},null,null,null,null,null,null,null,null,null,null,"nee",{"$f":"IF(SUM(D11:D12)>0,1,0)","v":0},{"$f":"IF(SUM(E11:E12)>0,1,0)","v":0},1,{"$f":"IF(S11+S12>0,1,0)","v":0},"Er is overlast van vliegen",0,0]
["9a","Vliegen worden actief bestreden",null,0,0,null,1,null,null,null,null,null,null,null,null,null,null,"ja",null,null,null,{"$f":"IF(S11+S12>0,1,0)","v":0},"Vliegen worden actief bestreden",0,0]
[10,"Op het bedrijf worden tevens varkens gehouden",null,0,0,null,1,null,null,null,null,null,null,null,null,null,null,"nee",0,0,1,0,"Op het bedrijf worden tevens varkens gehouden",0,0]
[11,"Op het bedrijf wordt tevens pluimvee gehouden",null,0,0,null,1,null,null,null,null,null,null,null,null,null,null,"nee",0,0,1,0,"Op het bedrijf wordt tevens pluimvee gehouden",0,0]
[12,"Op het bedrijf worden ook andere runderen dan vleeskalveren gehouden (melkvee, zoogkoeien, stieren, e.d.)",null,0,0,null,1,null,null,null,null,null,null,null,null,null,null,"nee",0,0,1,0,"Op het bedrijf worden ook andere runderen dan vleeskalveren gehouden (melkvee, zoogkoeien, stieren, e.d.)",0,0]
[13,"Bij andere diersoorten of andere runderen op het bedrijf zijn in de laatste 12 maanden aanwijzingen voor salmonella-infecties (geweest)",null,0,0,null,1,null,null,null,null,null,null,null,null,null,null,"nee",0,0,1,0,"Bij andere diersoorten of andere runderen op het bedrijf zijn in de laatste 12 maanden aanwijzingen voor salmonella-infecties (geweest)",0,0]
[14,"Bedrijfskleding, -laarzen en gereedschappen die bij de kalveren worden gebruikt zijn ook bij andere diersoorten of andere runderen gebruikt",null,0,0,null,1,null,null,null,null,null,null,null,null,null,null,"nee",0,0,1,0,"Bedrijfskleding, -laarzen en gereedschappen die bij de kalveren worden gebruikt zijn ook bij andere diersoorten of andere runderen gebruikt",0,0]
[15,"Op het erf zijn vuile en schone weg gescheiden",null,0,0,null,1,null,null,null,null,null,null,null,null,null,null,"ja",0,0,1,0,"Op het erf zijn vuile en schone weg gescheiden",0,0]
[16,"Er zijn personeelsleden die ook op andere bedrijven werken waar bedrijfsmatig dieren gehouden worden",null,0,0,null,1,null,null,null,null,null,null,null,null,null,null,"nee",{"$f":"IF(SUM(D19:D20)>0,1,0)","v":0},{"$f":"IF(SUM(E19:E20)>0,1,0)","v":0},1,{"$f":"IF(S19+S20>0,1,0)","v":0},"Er zijn personeelsleden die ook op andere bedrijven werken waar bedrijfsmatig dieren gehouden worden",0,0]
["16a","Zo ja, bij welke diersoort(-en)?",null,0,0,null,{"$f":"IF(AND(C19=\"ja\",COUNTA(C20)=0),1,0)","v":0},null,null,null,null,null,null,null,null,null,null,null,null,null,null,{"$f":"IF(S19+S20>0,1,0)","v":0},"Zo ja, bij welke diersoort(-en)?",0,0]
[17,"Andere risicofactor voor insleep",null,0,0,null,{"$f":"IF(COUNTA(C21)=0,1,0)","v":1},null,null,null,null,null,null,null,null,null,null,"nee",{"$f":"IF(D21+D22>0,1,0)","v":0},{"$f":"IF(E21+E22>0,1,0)","v":0},{"$f":"IF(S21>0,1,IF(R21<>C21,1,0))","v":1},{"$f":"IF(S21+S22>0,1,0)","v":0},"Andere risicofactor voor insleep",0,0]
["17a","te weten",null,0,0,null,{"$f":"IF(AND(C21=\"ja\",COUNTA(C22)=0),1,0)","v":0},null,null,null,null,null,null,null,null,null,null,"?",0,{"$f":"E22","v":0},null,{"$f":"IF(S21+S22>0,1,0)","v":0},{"$f":"B22&\": \"&C22","v":"te weten: "},0,0]
[null,"Opmerkingen t.a.v. insleep van salmonella"]
[null,null,null,null,null,null,{"$f":"IF(SUM(G2:G22)>0,1,0)","v":1}]

{"sheet":"Overdracht tussen rondes","index":11,"n_rows":23,"n_cols":25,"rows_kept":23,"cut":false,"hidden":false,"merged":[]}
["Nr","Vraag","Beoordeling","Aanvullende maatregel(en) zijn wenselijk (vul dan '1' in)","Maatregel op korte termijn uitvoeren (vul dan '1' in)","Toelichting maatregel",null,null,null,null,null,"0/1","ja/nee","ja/nee/nvt",null,null,null,"Preferente antwoord","Tellen als MTR","Tellen als MTR1","Tellen als RF","Tonen op opvolgplan","RF op opvolgplan","Antwoord RF op opvolgplan","Toelichting op opvolgplan"]
[18,"Er wordt all-in/all-out toegepast op bedrijfsniveau",null,0,0,null,{"$f":"IF(COUNTA(C2)=0,1,0)","v":1},null,null,null,null,0,"ja","ja",null,null,null,"ja",{"$f":"D2","v":0},{"$f":"E2","v":0},{"$f":"IF(S2>0,1,IF(R2<>C2,1,0))","v":1},{"$f":"IF(S2>0,1,0)","v":0},{"$f":"B2","v":"Er wordt all-in/all-out toegepast op bedrijfsniveau"},{"$f":"C2","v":0},{"$f":"F2","v":0}]
[19,"Er wordt all-in/all-out toegepast op stal-/afdelingsniveau",null,0,0,null,1,null,null,null,null,1,"nee","nee",null,null,null,"ja",{"$f":"D3","v":0},0,{"$f":"IF(S3>0,1,IF(R3<>C3,1,0))","v":1},{"$f":"IF(S3>0,1,0)","v":0},{"$f":"B3","v":"Er wordt all-in/all-out toegepast op stal-/afdelingsniveau"},{"$f":"C3","v":0},0]
[20,"Er is een gezamenlijke ziekenboeg voor zieke dieren afkomstig uit verschillende stallen/afdelingen",null,0,0,null,1,null,null,null,null,null,null,"nvt",null,null,null,null,0,0,{"$f":"IF((S4+S5+S6)>0,1,IF(OR(R5<>C5,R6<>C6),1,0))","v":1},{"$f":"S4","v":0},"Er is een gezamenlijke ziekenboeg voor zieke dieren afkomstig uit verschillende stallen/afdelingen",0,0]
["20a","Kalveren, die vanuit hun stal/afdeling naar een gezamenlijke ziekenboeg worden gebracht, gaan (soms) terug naar hun oorspronkelijke stal/afdeling",null,0,0,null,1,null,null,null,null,null,null,null,null,null,null,"nee",0,0,0,{"$f":"V4","v":0},"Kalveren, die vanuit hun stal/afdeling naar een gezamenlijke ziekenboeg worden gebracht, gaan (soms) terug naar hun oorspronkelijke stal/afdeling",0,0]
["20b","Kan hiermee salmonella verspreid worden tussen de rondes of tussen eventuele gelijktijdig aanwezige verschillende leeftijdsgroepen?",null,0,0,null,1,null,null,null,null,null,null,null,null,null,null,"nee",0,0,0,{"$f":"V4","v":0},"Kan hiermee salmonella verspreid worden tussen de rondes of tussen eventuele gelijktijdig aanwezige verschillende leeftijdsgroepen?",0,0]
[21,"Tussen de rondes worden de mestputten geleegd",null,0,0,null,1,null,null,null,null,null,null,null,null,null,null,"ja",0,0,1,0,"Tussen de rondes worden de mestputten geleegd",0,0]
[22,"Tussen de rondes worden de roosters volledig vrij van mest gemaakt",null,0,0,null,1,null,null,null,null,null,null,null,null,null,null,"ja",0,0,1,0,"Tussen de rondes worden de roosters volledig vrij van mest gemaakt",0,0]
[23,"Drinkwatersystemen en/of voersystemen waarin zich een biofilm kan vormen worden gereinigd tussen de rondes",null,0,0,null,1,null,null,null,null,null,null,null,null,null,null,"ja",{"$f":"IF(SUM(D9:D10)>0,1,0)","v":0},{"$f":"IF(SUM(E9:E10)>0,1,0)","v":0},1,{"$f":"IF(S9+S10>0,1,0)","v":0},"Drinkwatersystemen en/of voersystemen waarin zich een biofilm kan vormen worden gereinigd tussen de rondes",0,0]
[24,"Alle gebruiksvoorwerpen, gereedschappen, instrumenten en materialen die in de stal worden gebruikt worden tussen de rondes gereinigd en zo mogelijk gedesinfecteerd",null,0,0,null,{"$f":"IF(AND(C9=\"ja\",COUNTA(C10)=0),1,0)","v":0},null,null,null,null,null,null,null,null,null,null,"ja",null,null,null,{"$f":"IF(S9+S10>0,1,0)","v":0},"Alle gebruiksvoorwerpen, gereedschappen, instrumenten en materialen die in de stal worden gebruikt worden tussen de rondes gereinigd en zo mogelijk gedesinfecteerd",0,0]
[25,"Tussen de rondes wordt de stal volledig gereinigd",null,0,0,null,{"$f":"IF(COUNTA(C11)=0,1,0)","v":1},null,null,null,null,null,null,null,null,null,null,"ja",{"$f":"IF(SUM(D11:D14)>0,1,0)","v":0},{"$f":"IF(SUM(E11:E14)>0,1,0)","v":0},{"$f":"IF(S11>0,1,IF(OR(R11<>C11,R12<>C12,R13>C13,R14<>C14),1,0))","v":1},{"$f":"S11","v":0},"Tussen de rondes wordt de stal volledig gereinigd",0,0]
["25a","Zo ja, er wordt gebruik gemaakt van een inweekproces",null,0,0,null,1,null,null,null,null,null,null,null,null,null,null,"ja",0,0,0,{"$f":"V11","v":0},"Zo ja, er wordt gebruik gemaakt van een inweekproces",0,0]
["25b","Zo ja, er wordt gebruikt gemaakt van een reinigingsmiddel",null,0,0,null,1,null,null,null,null,null,null,null,null,null,null,"ja",0,0,0,{"$f":"V11","v":0},"Zo ja, er wordt gebruikt gemaakt van een reinigingsmiddel",0,0]
["25c","Zo ja, er wordt gebruikt gemaakt van een stoomreiniger",null,0,0,null,1,null,null,null,null,null,null,null,null,null,null,"ja",0,0,0,{"$f":"V11","v":0},"Zo ja, er wordt gebruikt gemaakt van een stoomreiniger",0,0]
[26,"Na het reinigen van de stal wordt deze gedesinfecteerd",null,0,0,null,1,null,null,null,null,null,null,null,null,null,null,"ja",0,0,{"$f":"IF(S15>0,1,IF(R15<>C15,1,0))","v":1},{"$f":"S15","v":0},"Na het reinigen van de stal wordt deze gedesinfecteerd",0,0]
[27,"Na reiniging en/of desinfectie van de stal wordt deze gedurende ten minste zeven dagen volledig gedroogd voordat er kalveren in komen",null,0,0,null,1,null,null,null,null,null,null,null,null,null,null,"ja",0,0,1,0,"Na reiniging en/of desinfectie van de stal wordt deze gedurende ten minste zeven dagen volledig gedroogd voordat er kalveren in komen",0,0]
[28,"In de vorige en huidige ronde werd salmonellose veroorzaakt door een zelfde serotype",null,0,0,null,1,null,null,null,null,null,null,null,null,null,null,"nee",0,0,1,0,"In de vorige en huidige ronde werd salmonellose veroorzaakt door een zelfde serotype",0,0]
[29,"Er zijn, voorafgaand aan de meest recente opzet van kalveren, stalmonsters (zoals mestputmonsters of overschoentjes) onderzocht op salmonella om te beoordelen of de reiniging/desinfectie/leegstand effectief is geweest",null,0,0,null,1,null,null,null,null,null,null,null,null,null,null,"ja",{"$f":"IF(D18+D19>0,1,0)","v":0},{"$f":"IF(E18+E19>0,1,0)","v":0},{"$f":"IF(S18>0,1,IF(OR(R18<>C18,R19<>C19),1,0))","v":1},0,"Er zijn, voorafgaand aan de meest recente opzet van kalveren, stalmonsters (zoals mestputmonsters of overschoentjes) onderzocht op salmonella om te beoordelen of de reiniging/desinfectie/leegstand effectief is geweest",0,0]
["29a","Zo ja, werden hierbij salmonellabacteriën aangetoond?",null,0,0,null,1,null,null,null,null,null,null,null,null,null,null,"nee",0,0,1,{"$f":"V18","v":0},"Zo ja, werden hierbij salmonellabacteriën aangetoond?",0,0]
[30,"Andere risicofactor voor overdracht tussen rondes, te weten:",null,0,0,null,{"$f":"IF(COUNTA(C20)=0,1,0)","v":1},null,null,null,null,null,null,null,null,null,null,"nee",{"$f":"IF(D20+D21>0,1,0)","v":0},{"$f":"IF(E20+E21>0,1,0)","v":0},1,{"$f":"IF(S20+S21>0,1,0)","v":0},"Andere risicofactor voor overdracht tussen rondes, te weten:",0,0]
["30a","te weten",null,0,0,null,{"$f":"IF(AND(C20=\"ja\",COUNTA(C21)=0),1,0)","v":0},null,null,null,null,null,null,null,null,null,null,"?",0,0,null,{"$f":"IF(S20+S21>0,1,0)","v":0},{"$f":"B21&\": \"&C21","v":"te weten: "},0,0]
[null,"Opmerkingen t.a.v. overdracht van salmonella tussen rondes"]
[null,null,null,null,null,null,{"$f":"IF(SUM(G2:G21)>0,1,0)","v":1}]

{"sheet":"Verspreiding binnen een ronde","index":12,"n_rows":38,"n_cols":25,"rows_kept":38,"cut":false,"hidden":false,"merged":[]}
["Nr","Vraag","Beoordeling","Aanvullende maatregel(en) zijn wenselijk (vul dan '1' in)","Maatregel op korte termijn uitvoeren (vul dan '1' in)","Toelichting maatregel",null,null,null,null,null,"0/1","ja/nee","ja/nee/nvt",null,null,null,"Preferente antwoord","Tellen als MTR","Tellen als MTR1","Tellen als RF","Tonen op opvolgplan","RF op opvolgplan","Antwoord RF op opvolgplan","Toelichting op opvolgplan"]
[31,"Kalveren blijven gedurende de ronde in de afdeling waarin zij binnenkomen",null,0,0,null,{"$f":"IF(COUNTA(C2)=0,1,0)","v":1},null,null,null,null,0,"ja","ja",null,null,null,"ja",{"$f":"D2","v":0},{"$f":"E2","v":0},{"$f":"IF(S2>0,1,IF(R2<>C2,1,0))","v":1},{"$f":"IF(S2>0,1,0)","v":0},{"$f":"B2","v":"Kalveren blijven gedurende de ronde in de afdeling waarin zij binnenkomen"},{"$f":"C2","v":0},{"$f":"F2","v":0}]
[32,"Tot en met het losgaan worden de kalveren uitsluitend gesorteerd binnen dezelfde rij",null,0,0,null,1,null,null,null,null,1,"nee","nee",null,null,null,"ja",{"$f":"D3","v":0},{"$f":"E3","v":0},{"$f":"IF(S3>0,1,IF(R3<>C3,1,0))","v":1},{"$f":"IF(S3>0,1,0)","v":0},{"$f":"B3","v":"Tot en met het losgaan worden de kalveren uitsluitend gesorteerd binnen dezelfde rij"},{"$f":"C3","v":0},{"$f":"F3","v":0}]
[33,"Na afloop van het sorteren bij het losgaan van de kalveren worden kalveren uitsluitend gesorteerd binnen dezelfde rij",null,0,0,null,1,null,null,null,null,null,null,"nvt",null,null,null,"ja",0,0,1,0,"Na afloop van het sorteren bij het losgaan van de kalveren worden kalveren uitsluitend gesorteerd binnen dezelfde rij",0,0]
[34,"Tijdens een ronde wordt mest uit de put verplaatst tussen afdelingen en/of mestputten van verschillende afdelingen staan met elkaar in verbinding",null,0,0,null,1,null,null,null,null,null,null,null,null,null,null,"nee",0,0,1,0,"Tijdens een ronde wordt mest uit de put verplaatst tussen afdelingen en/of mestputten van verschillende afdelingen staan met elkaar in verbinding",0,0]
[35,"De slangen en apparatuur voor het verstrekken van melk en voer zijn gescheiden per afdeling of worden tussen de afdelingen gereinigd met reinigingsmiddel",null,0,0,null,1,null,null,null,null,null,null,null,null,null,null,"ja",0,0,1,0,"De slangen en apparatuur voor het verstrekken van melk en voer zijn gescheiden per afdeling of worden tussen de afdelingen gereinigd met reinigingsmiddel",0,0]
[36,"Per afdeling worden aparte gereedschappen, bedrijfskleding en -laarzen gebruikt",null,0,0,null,1,null,null,null,null,null,null,null,null,null,null,"ja",0,0,1,0,"Per afdeling worden aparte gereedschappen, bedrijfskleding en -laarzen gebruikt",0,0]
[37,"Bij het verlaten van de kalverhokken worden de laarzen altijd gereinigd",null,0,0,null,1,null,null,null,null,null,null,null,null,null,null,"ja",0,0,1,0,"Bij het verlaten van de kalverhokken worden de laarzen altijd gereinigd",0,0]
[38,"Bij het verlaten van een afdeling worden de laarzen gereinigd",null,0,0,null,1,null,null,null,null,null,null,null,null,null,null,"ja",0,0,1,0,"Bij het verlaten van een afdeling worden de laarzen gereinigd",0,0]
[39,"De laarzen zijn optisch schoon en vrij van mest na reiniging",null,0,0,null,{"$f":"IF(AND(C9=\"ja\",COUNTA(C10)=0),1,0)","v":0},null,null,null,null,null,null,null,null,null,null,"ja",0,0,1,0,"De laarzen zijn optisch schoon en vrij van mest na reiniging",0,0]
[40,"Bij het verlaten van een afdeling worden de handen gewassen en/of gedesinfecteerd",null,0,0,null,{"$f":"IF(COUNTA(C11)=0,1,0)","v":1},null,null,null,null,null,null,null,null,null,null,"ja",0,0,1,0,"Bij het verlaten van een afdeling worden de handen gewassen en/of gedesinfecteerd",0,0]
[41,"Na het uitbreken van salmonellose in een afdeling worden in die afdeling aparte gereedschappen, bedrijfskleding en -laarzen gebruikt",null,0,0,null,1,null,null,null,null,null,null,null,null,null,null,"ja",0,0,1,0,"Na het uitbreken van salmonellose in een afdeling worden in die afdeling aparte gereedschappen, bedrijfskleding en -laarzen gebruikt",0,0]
[42,"Na het uitbreken van salmonellose in een afdeling wordt het sorteren in die afdeling stilgelegd",null,0,0,null,1,null,null,null,null,null,null,null,null,null,null,"ja",{"$f":"IF(D13+D14>0,1,0)","v":0},{"$f":"IF(E13+E14>0,1,0)","v":0},1,0,"Na het uitbreken van salmonellose in een afdeling wordt het sorteren in die afdeling stilgelegd",0,0]
["42a","Zo ja, hoe lang? (aantal dagen)",null,0,0,null,{"$f":"IF(C13=\"ja\",IF(COUNTA(C14)=0,1,0),0)","v":0},null,null,null,null,null,null,null,null,null,null,null,0,0,0,{"$f":"IF(D14>0,1,0)","v":0},"Zo ja, hoe lang? (aantal dagen)",0,0]
[43,"Kalveren in de ziekenboeg(en) zijn volledig gescheiden van andere kalveren (geen spijlen hek)",null,0,0,null,1,null,null,null,null,null,null,null,null,null,null,"ja",0,0,1,0,"Kalveren in de ziekenboeg(en) zijn volledig gescheiden van andere kalveren (geen spijlen hek)",0,0]
[44,"Kalveren uit de ziekenboeg(en) worden verplaatst of teruggeplaatst naar andere hokken",null,0,0,null,1,null,null,null,null,null,null,null,null,null,null,"nee",0,0,1,0,"Kalveren uit de ziekenboeg(en) worden verplaatst of teruggeplaatst naar andere hokken",0,0]
[45,"In de ziekenboeg worden aparte gereedschappen, bedrijfskleding en – laarzen gebruikt",null,0,0,null,1,null,null,null,null,null,null,null,null,null,null,"ja",0,0,1,0,"In de ziekenboeg worden aparte gereedschappen, bedrijfskleding en – laarzen gebruikt",0,0]
[46,"Kalveren in de ziekenboeg worden gevoerd ná het voeren van gezonde rundvee (binnen één voerronde)",null,0,0,null,1,null,null,null,null,null,null,null,null,null,null,"ha",0,0,1,0,"Kalveren in de ziekenboeg worden gevoerd ná het voeren van gezonde rundvee (binnen één voerronde)",0,0]
[47,"Kalveren in de ziekenboeg worden verzorgd/bemonsterd/behandeld ná de verzorging/bemonstering/behandeling van de overige kalveren (in de tijd)",null,0,0,null,1,null,null,null,null,null,null,null,null,null,null,"ha",0,0,1,0,"Kalveren in de ziekenboeg worden verzorgd/bemonsterd/behandeld ná de verzorging/bemonstering/behandeling van de overige kalveren (in de tijd)",0,0]
[48,"Injectienaalden worden na eenmalig gebruik weggegooid",null,0,0,null,1,null,null,null,null,null,null,null,null,null,null,"ja",0,0,1,0,"Injectienaalden worden na eenmalig gebruik weggegooid",0,0]
[49,"Bij contact met zieke kalveren worden wegwerphandschoenen gedragen en deze worden na gebruik weggegooid",null,0,0,null,1,null,null,null,null,null,null,null,null,null,null,"ja",0,0,1,0,"Bij contact met zieke kalveren worden wegwerphandschoenen gedragen en deze worden na gebruik weggegooid",0,0]
[50,"Na contact met zieke kalveren worden de handen gewassen en gedesinfecteerd",null,0,0,null,1,null,null,null,null,null,null,null,null,null,null,"ja",0,0,1,0,"Na contact met zieke kalveren worden de handen gewassen en gedesinfecteerd",0,0]
[51,"Na betreden van een hok met zieke kalveren worden de laarzen gereinigd voordat er een ander hok wordt betreden",null,0,0,null,1,null,null,null,null,null,null,null,null,null,null,"ja",0,0,1,0,"Na betreden van een hok met zieke kalveren worden de laarzen gereinigd voordat er een ander hok wordt betreden",0,0]
[52,"Kalveren met een beeld van salmonellose worden volgens het meest recente formularium vleeskalveren van de WVAB behandeld",null,0,0,null,1,null,null,null,null,null,null,null,null,null,null,"ja",0,0,1,0,"Kalveren met een beeld van salmonellose worden volgens het meest recente formularium vleeskalveren van de WVAB behandeld",0,0]
[53,"Bij kalveren met een beeld van salmonellose is na 2 maanden na de ziekteverschijnselen een mestkweek op salmonella uitgevoerd om eventuele actieve salmonelladragers op te sporen",null,0,0,null,1,null,null,null,null,null,null,null,null,null,null,"ja",0,0,1,0,"Bij kalveren met een beeld van salmonellose is na 2 maanden na de ziekteverschijnselen een mestkweek op salmonella uitgevoerd om eventuele actieve salmonelladragers op te sporen",0,0]
[54,"Honden komen in de stallen",null,0,0,null,1,null,null,null,null,null,null,null,null,null,null,"nee",0,0,1,0,"Honden komen in de stallen",0,0]
[55,"Katten komen in de stallen",null,0,0,null,1,null,null,null,null,null,null,null,null,null,null,"nee",0,0,1,0,"Katten komen in de stallen",0,0]
[56,"Het erf is voldoende verhard, schoon en vrij van mest",null,0,0,null,1,null,null,null,null,null,null,null,null,null,null,"ja",0,0,1,0,"Het erf is voldoende verhard, schoon en vrij van mest",0,0]
[57,"De verharding en afwatering van het erf zijn adequaat",null,0,0,null,1,null,null,null,null,null,null,null,null,null,null,"ja",0,0,1,0,"De verharding en afwatering van het erf zijn adequaat",0,0]
[58,"De voerpaden in de stallen zijn schoon en vrij van mest en voerresten",null,0,0,null,1,null,null,null,null,null,null,null,null,null,null,"ja",0,0,1,0,"De voerpaden in de stallen zijn schoon en vrij van mest en voerresten",0,0]
[59,"Het voergereedschap wordt uitsluitend gebruikt voor voeren (en niet voor dubbel gebruik voor o.a. mest)",null,0,0,null,1,null,null,null,null,null,null,null,null,null,null,"ja",0,0,1,0,"Het voergereedschap wordt uitsluitend gebruikt voor voeren (en niet voor dubbel gebruik voor o.a. mest)",0,0]
[60,"De kadaveropslag is volledig afgesloten, zodat ongedierte, katten en honden geen toegang hebben tot de kadavers",null,0,0,null,1,null,null,null,null,null,null,null,null,null,null,"ja",0,0,1,0,"De kadaveropslag is volledig afgesloten, zodat ongedierte, katten en honden geen toegang hebben tot de kadavers",0,0]
[61,"Dode dieren worden altijd met wegwerphandschoenen aan verplaatst en de handen worden altijd gewassen en gedesinfecteerd na het werken met dode dieren",null,0,0,null,1,null,null,null,null,null,null,null,null,null,null,"ja",0,0,1,0,"Dode dieren worden altijd met wegwerphandschoenen aan verplaatst en de handen worden altijd gewassen en gedesinfecteerd na het werken met dode dieren",0,0]
[62,"Het materiaal waarmee de dode dieren worden verplaatst wordt direct na gebruik gereinigd en gedesinfecteerd",null,0,0,null,1,null,null,null,null,null,null,null,null,null,null,"ja",0,0,1,0,"Het materiaal waarmee de dode dieren worden verplaatst wordt direct na gebruik gereinigd en gedesinfecteerd",0,0]
[63,"Andere risicofactor voor verspreiding binnen een ronde",null,0,0,null,1,null,null,null,null,null,null,null,null,null,null,"nee",{"$f":"IF(D35+D36>0,1,0)","v":0},{"$f":"IF(E35+E36>0,1,0)","v":0},1,{"$f":"IF(S35+S36>0,1,0)","v":0},"Andere risicofactor voor verspreiding binnen een ronde",0,0]
["63a","te weten",null,0,0,null,{"$f":"IF(AND(C35=\"ja\",COUNTA(C36)=0),1,0)","v":0},null,null,null,null,null,null,null,null,null,null,"?",0,{"$f":"E36","v":0},null,{"$f":"IF(S35+S36>0,1,0)","v":0},{"$f":"B36&\": \"&C36","v":"te weten: "},0,0]
[null,"Opmerkingen t.a.v. verspreiding van salmonella binnen een ronde"]
[null,null,null,null,null,null,{"$f":"IF(SUM(G2:G36)>0,1,0)","v":1}]

{"sheet":"Weerstand","index":13,"n_rows":19,"n_cols":25,"rows_kept":19,"cut":false,"hidden":false,"merged":[]}
["Nr","Vraag","Beoordeling","Aanvullende maatregel(en) zijn wenselijk (vul dan '1' in)","Maatregel op korte termijn uitvoeren (vul dan '1' in)","Toelichting maatregel",null,null,null,null,null,"0/1","ja/nee","ja/nee/nvt",null,null,null,"Preferente antwoord","Tellen als MTR","Tellen als MTR1","Tellen als RF","Tonen op opvolgplan","RF op opvolgplan","Antwoord RF op opvolgplan","Toelichting op opvolgplan"]
[64,"De kalveren van de huidige ronde waren bij aankomst fit en niet verreisd",null,0,0,null,{"$f":"IF(COUNTA(C2)=0,1,0)","v":1},null,null,null,null,0,"ja","ja",null,null,null,"ja",{"$f":"D2","v":0},{"$f":"E2","v":0},{"$f":"IF(S2>0,1,IF(R2<>C2,1,0))","v":1},{"$f":"IF(S2>0,1,0)","v":0},{"$f":"B2","v":"De kalveren van de huidige ronde waren bij aankomst fit en niet verreisd"},{"$f":"C2","v":0},{"$f":"F2","v":0}]
[65,"De groei van de kalveren is volgens verwachting",null,0,0,null,1,null,null,null,null,1,"nee","nee",null,null,null,"ja",{"$f":"D3","v":0},{"$f":"E3","v":0},{"$f":"IF(S3>0,1,IF(R3<>C3,1,0))","v":1},{"$f":"IF(S3>0,1,0)","v":0},{"$f":"B3","v":"De groei van de kalveren is volgens verwachting"},0,0]
[66,"Er vindt een analyse plaats van de ijzerwaardes van de geleverde kalveren en er wordt indien nodig individueel gecorrigeerd",null,0,0,null,1,null,null,null,null,null,null,"nvt",null,null,null,"ja",0,0,1,0,"Er vindt een analyse plaats van de ijzerwaardes van de geleverde kalveren en er wordt indien nodig individueel gecorrigeerd",0,0]
[67,"Is er voorafgaande aan de verschijnselen van salmonella een ‘trigger’ waargenomen? Denk aan andere ziekten, voerwisselingen, dierverplaatsingen of incidenten.",null,0,0,null,1,null,null,null,null,null,null,null,null,null,null,"nee",{"$f":"IF(D5+D6>0,1,0)","v":0},{"$f":"IF(E5+E6>0,1,0)","v":0},{"$f":"IF((S5+S6)>0,1,IF(OR(R5<>C5,C6<>\"\"),1,0))","v":1},0,"Is er voorafgaande aan de verschijnselen van salmonella een ‘trigger’ waargenomen? Denk aan andere ziekten, voerwisselingen, dierverplaatsingen of incidenten.",0,0]
["67a","Zo ja, welke?",null,0,0,null,{"$f":"IF(AND(C5=\"ja\",COUNTA(C6)=0),1,0)","v":0},null,null,null,null,null,null,null,null,null,null,"?",0,0,0,{"$f":"V5","v":0},"Zo ja, welke?",0,0]
[68,"Het stalklimaat en de ventilatie zijn steeds optimaal",null,0,0,null,1,null,null,null,null,null,null,null,null,null,null,"ja",0,0,1,0,"Het stalklimaat en de ventilatie zijn steeds optimaal",0,0]
[69,"Het geadviseerde voerschema is steeds nauwkeurig gevolgd",null,0,0,null,1,null,null,null,null,null,null,null,null,null,null,"ja",0,0,1,0,"Het geadviseerde voerschema is steeds nauwkeurig gevolgd",0,0]
[70,"Er worden door de veehouder extra vitaminemixen toegevoegd aan het basisrantsoen",null,0,0,null,1,null,null,null,null,null,null,null,null,null,null,"nee",0,0,1,0,"Er worden door de veehouder extra vitaminemixen toegevoegd aan het basisrantsoen",0,0]
[71,"De kalveren hebben te allen tijde voldoende ruwvoer ter beschikking",null,0,0,null,1,null,null,null,null,null,null,null,null,null,null,"ja",0,{"$f":"E10","v":0},1,0,"De kalveren hebben te allen tijde voldoende ruwvoer ter beschikking",0,0]
[72,"De kalveren hebben te allen tijde voldoende krachtvoer (brok/muesli) ter beschikking",null,0,0,null,{"$f":"IF(COUNTA(C11)=0,1,0)","v":1},null,null,null,null,null,null,null,null,null,null,"nee",0,0,1,0,"De kalveren hebben te allen tijde voldoende krachtvoer (brok/muesli) ter beschikking",0,0]
[73,"In koude periodes wordt de verwarming in de stal tijdig en adequaat ingeschakeld",null,0,0,null,1,null,null,null,null,null,null,null,null,null,null,"ja",0,0,1,0,"In koude periodes wordt de verwarming in de stal tijdig en adequaat ingeschakeld",0,0]
[74,"In koude periodes wordt het rantsoen tijdig en adequaat aangepast",null,0,0,null,1,null,null,null,null,null,null,null,null,null,null,"nee",0,0,1,0,"In koude periodes wordt het rantsoen tijdig en adequaat aangepast",0,0]
[75,"In warme periodes wordt de ventilatie in de stal tijdig en adequaat aangepast",null,0,0,null,1,null,null,null,null,null,null,null,null,null,null,"nee",0,0,1,0,"In warme periodes wordt de ventilatie in de stal tijdig en adequaat aangepast",0,0]
[76,"In warme periode wordt het rantsoen en watergift tijdig en adequaat aangepast",null,0,0,null,1,null,null,null,null,null,null,null,null,null,null,"nee",0,0,1,0,"In warme periode wordt het rantsoen en watergift tijdig en adequaat aangepast",0,0]
[77,"Andere risicofactor voor verminderde weerstand tegen salmonella, ",null,0,0,null,{"$f":"IF(COUNTA(C16)=0,1,0)","v":1},null,null,null,null,null,null,null,null,null,null,"nee",0,0,1,0,"Andere risicofactor voor verminderde weerstand tegen salmonella, ",0,0]
["77a","te weten",null,0,0,null,{"$f":"IF(AND(C16=\"ja\",COUNTA(C17)=0),1,0)","v":0},null,null,null,null,null,null,null,null,null,null,"?",0,0,1,0,{"$f":"B17&\": \"&C17","v":"te weten: "},0,0]
[null,"Opmerkingen t.a.v. weerstand tegen salmonella"]
[null,null,null,null,null,null,{"$f":"IF(SUM(G2:G17)>0,1,0)","v":1}]

{"sheet":"Zoonotische risicos","index":14,"n_rows":14,"n_cols":25,"rows_kept":14,"cut":false,"hidden":false,"merged":[]}
["Nr","Vraag","Beoordeling","Aanvullende maatregel(en) zijn wenselijk (vul dan '1' in)","Maatregel op korte termijn uitvoeren (vul dan '1' in)","Toelichting maatregel",null,null,null,null,null,"0/1","ja/nee","ja/nee/nvt",null,null,null,"Preferente antwoord","Tellen als MTR","Tellen als MTR1","Tellen als RF","Tonen op opvolgplan","RF op opvolgplan","Antwoord RF op opvolgplan","Toelichting op opvolgplan"]
[78,"Voor het betreden van het woonhuis worden altijd de handen gewassen en gedesinfecteerd",null,0,0,null,{"$f":"IF(COUNTA(C2)=0,1,0)","v":1},null,null,null,null,0,"ja","ja",null,null,null,"ja",{"$f":"D2","v":0},{"$f":"E2","v":0},{"$f":"IF(S2>0,1,IF(R2<>C2,1,0))","v":1},{"$f":"IF(S2>0,1,0)","v":0},{"$f":"B2","v":"Voor het betreden van het woonhuis worden altijd de handen gewassen en gedesinfecteerd"},{"$f":"C2","v":0},{"$f":"F2","v":0}]
[79,"Tijdens de werkzaamheden in de stal worden wegwerphandschoenen gedragen",null,0,0,null,1,null,null,null,null,1,"nee","nee",null,null,null,"ja",{"$f":"D3","v":0},{"$f":"E3","v":0},{"$f":"IF(S3>0,1,IF(R3<>C3,1,0))","v":1},{"$f":"IF(S3>0,1,0)","v":0},{"$f":"B3","v":"Tijdens de werkzaamheden in de stal worden wegwerphandschoenen gedragen"},0,0]
[80,"Voor eten, drinken en roken worden altijd de handen gewassen en gedesinfecteerd",null,0,0,null,1,null,null,null,null,null,null,"nvt",null,null,null,"ja",0,0,1,0,"Voor eten, drinken en roken worden altijd de handen gewassen en gedesinfecteerd",0,0]
[81,"In de stal wordt bedrijfskleding gedragen en deze bedrijfskleding wordt niet in het woonhuis gedragen",null,0,0,null,1,null,null,null,null,null,null,null,null,null,null,"ja",0,0,1,0,"In de stal wordt bedrijfskleding gedragen en deze bedrijfskleding wordt niet in het woonhuis gedragen",0,0]
[82,"Het bedrijf heeft tevens een publieke functie (bijv. zorgboerderij, kampeerboerderij of ontvangt regelmatig bezoekers voor rondleidingen of training).",null,0,0,null,1,null,null,null,null,null,null,null,null,null,null,"nee",0,0,1,0,"Het bedrijf heeft tevens een publieke functie (bijv. zorgboerderij, kampeerboerderij of ontvangt regelmatig bezoekers voor rondleidingen of training).",0,0]
[83,"Het bedrijf is tevens zelfzuivelaar",null,0,0,null,1,null,null,null,null,null,null,null,null,null,null,"nee",0,0,1,0,"Het bedrijf is tevens zelfzuivelaar",0,0]
[84,"Het bedrijf verkoopt in eigen beheer producten van het bedrijf (bijv. winkel aan huis, verkoop van vleespakketten, etc.)",null,0,0,null,1,null,null,null,null,null,null,null,null,null,null,"nee",0,0,1,0,"Het bedrijf verkoopt in eigen beheer producten van het bedrijf (bijv. winkel aan huis, verkoop van vleespakketten, etc.)",0,0]
[85,"Het optreden van salmonellose is gemeld aan de NVWA",null,0,0,null,1,null,null,null,null,null,null,null,null,null,null,"ja",0,0,1,0,"Het optreden van salmonellose is gemeld aan de NVWA",0,0]
[86,"Bij afvoer van kalveren naar de slacht is salmonellose vermeld op het Formulier Voedselketeninformatie slachtrunderen (VKI formulier)",null,0,0,null,1,null,null,null,null,null,null,null,null,null,null,"ja",0,0,null,0,"Bij afvoer van kalveren naar de slacht is salmonellose vermeld op het Formulier Voedselketeninformatie slachtrunderen (VKI formulier)",0,0]
[87,"Andere risicofactor voor besmetting van mensen",null,0,0,null,1,null,null,null,null,null,null,null,null,null,null,"nee",0,0,{"$f":"IF(S11>0,1,IF(R11<>C11,1,0))","v":1},{"$f":"IF(S11+S12>0,1,0)","v":0},"Andere risicofactor voor besmetting van mensen",0,0]
["87a","te weten",null,0,0,null,{"$f":"IF(AND(C11=\"ja\",COUNTA(C12)=0),1,0)","v":0},null,null,null,null,null,null,null,null,null,null,"?",0,0,null,{"$f":"IF(S11+S12>0,1,0)","v":0},{"$f":"B12&\": \"&C12","v":"te weten: "},0,0]
[null,"Opmerkingen t.a.v. zoönotische risico’s"]
[null,null,null,null,null,null,{"$f":"IF(SUM(G2:G12)>0,1,0)","v":1}]

{"sheet":"Registratie","index":15,"n_rows":11,"n_cols":25,"rows_kept":11,"cut":false,"hidden":false,"merged":[]}
["Nr","Vraag","Beoordeling","Aanvullende maatregel(en) zijn wenselijk (vul dan '1' in)","Maatregel op korte termijn uitvoeren (vul dan '1' in)","Toelichting maatregel",null,null,null,null,null,"0/1","ja/nee","ja/nee/nvt",null,null,null,"Preferente antwoord","Tellen als MTR","Tellen als MTR1","Tellen als RF","Tonen op opvolgplan","RF op opvolgplan","Antwoord RF op opvolgplan","Toelichting op opvolgplan"]
[88,"Tijdens het bedrijfsbezoek is een administratie voorhanden waarin op dierniveau is vastgelegd voor welke indicatie het kalf is behandeld, wanneer het is behandeld en waarmee",null,0,0,null,{"$f":"IF(COUNTA(C2)=0,1,0)","v":1},null,null,null,null,0,"ja","ja",null,null,null,"ja",{"$f":"D2","v":0},{"$f":"E2","v":0},{"$f":"IF(S2>0,1,IF(R2<>C2,1,0))","v":1},{"$f":"IF(S2>0,1,0)","v":0},{"$f":"B2","v":"Tijdens het bedrijfsbezoek is een administratie voorhanden waarin op dierniveau is vastgelegd voor welke indicatie het kalf is behandeld, wanneer het is behandeld en waarmee"},{"$f":"C2","v":0},{"$f":"F2","v":0}]
[89,"Tijdens het bedrijfsbezoek zijn individuele gewichten bij aanvoer voorhanden",null,0,0,null,1,null,null,null,null,1,"nee","nee",null,null,null,"ja",{"$f":"D3","v":0},{"$f":"E3","v":0},{"$f":"IF(S3>0,1,IF(R3<>C3,1,0))","v":1},{"$f":"IF(S3>0,1,0)","v":0},{"$f":"B3","v":"Tijdens het bedrijfsbezoek zijn individuele gewichten bij aanvoer voorhanden"},0,0]
[90,"Tijdens het bedrijfsbezoek zijn alle uitslagen van uitgevoerde haemoglobine-bepalingen voorhanden",null,0,0,null,1,null,null,null,null,null,null,"nvt",null,null,null,"ja",0,0,1,0,"Tijdens het bedrijfsbezoek zijn alle uitslagen van uitgevoerde haemoglobine-bepalingen voorhanden",0,0]
[91,"Er zijn uitgewerkte protocollen voor ziektebehandeling en hygiëneprocedures, en deze worden nageleefd",null,0,0,null,1,null,null,null,null,null,null,null,null,null,null,"ja",0,0,1,0,"Er zijn uitgewerkte protocollen voor ziektebehandeling en hygiëneprocedures, en deze worden nageleefd",0,0]
[92,"De kalverhouder maakt gebruik van een kalvermanagement softwarepakket  ",null,0,0,null,1,null,null,null,null,null,null,null,null,null,null,"ja",{"$f":"IF(D6+D7>0,1,0)","v":0},{"$f":"IF(E6+E7>0,1,0)","v":0},{"$f":"IF(S6+S7>0,1,IF(OR(R6<>C6,67<>C7),1,0))","v":1},{"$f":"IF(S6+S7>0,1,0)","v":0},"De kalverhouder maakt gebruik van een kalvermanagement softwarepakket  ",0,0]
["92a","Zo ja, dit programma wordt gebruikt voor vroegsignalering en evaluatie van de aanpak van gezondheidsproblemen op het bedrijf",null,0,0,null,1,null,null,null,null,null,null,null,null,null,null,"ja",0,0,0,{"$f":"V6","v":0},"Zo ja, dit programma wordt gebruikt voor vroegsignalering en evaluatie van de aanpak van gezondheidsproblemen op het bedrijf",0,0]
[93,"Andere risicofactor met betrekking tot registratie",null,0,0,null,{"$f":"IF(COUNTA(C8)=0,1,0)","v":1},null,null,null,null,null,null,null,null,null,null,"nee",{"$f":"IF(D8+D9>0,1,0)","v":0},{"$f":"IF(E8+E9>0,1,0)","v":0},{"$f":"IF(S8>0,1,IF(R8<>C8,1,0))","v":1},{"$f":"IF(S8+S9>0,1,0)","v":0},"Andere risicofactor met betrekking tot registratie",0,0]
["93a","te weten",null,0,0,null,{"$f":"IF(AND(C8=\"ja\",COUNTA(C9)=0),1,0)","v":0},null,null,null,null,null,null,null,null,null,null,"?",0,{"$f":"E9","v":0},null,{"$f":"IF(S8+S9>0,1,0)","v":0},{"$f":"B9&\": \"&C9","v":"te weten: "},0,0]
[null,"Opmerkingen t.a.v. registratie"]
[null,null,null,null,null,null,{"$f":"IF(SUM(G2:G9)>0,1,0)","v":1}]

{"sheet":"opvolgplan","index":16,"n_rows":66,"n_cols":5,"rows_kept":66,"cut":false,"hidden":false,"merged":[[14,2,14,3],[14,1,15,1],[14,4,15,4]]}
[]
[null,"Opvolgplan maatregelen salmonella"]
[]
[]
["UBN:",{"$f":"bedrijfsgegevens!B2","v":0}]
["Naam:",{"$f":"bedrijfsgegevens!B3","v":0}]
["Adres:",{"$f":"bedrijfsgegevens!B4&\" \"&bedrijfsgegevens!B5&\",  \"&bedrijfsgegevens!B7","v":" ,  "}]
["Tel nr:",{"$f":"IF(OR(bedrijfsgegevens!B8=0,ISBLANK(bedrijfsgegevens!B8)),bedrijfsgegevens!B9,IF(OR(#REF!=0,ISBLANK(bedrijfsgegevens!B9)),bedrijfsgegevens!B8,bedrijfsgegevens!B82&\"/\"&bedrijfsgegevens!B9))","v":0}]
["Email",{"$f":"bedrijfsgegevens!B10","v":0}]
["Vertegenwoordiger / eigenaar: ",{"$f":"visite!B13&\" (\"&visite!D13&\"), tel:\"&visite!F13","v":" (), tel:"}]
["Dierenarts: ",{"$f":"visite!B2&\" (\"&visite!B3&\"),  tel: \"&visite!B5&\",  mobiel: \"&visite!B6","v":" (),  tel: ,  mobiel: "}]
["Datum visite:",{"$f":"visite!B7","v":"00:00:00"}]
[]
["Aantallen risicofactoren en geadviseerde maatregelen expertbezoek",null,null,null,{"$f":"IF(instructie!A$53>0,\"Check invoer op volledigheid.\",\"\")","v":"Check invoer op volledigheid."}]
["Categorie","Risico factoren","Maatregelen",null,{"$f":"IF(instructie!A$53>0,\"Voor meer informatie, zie rode velden op tabblad 'instructie'\",\"\")","v":"Voor meer informatie, zie rode velden op tabblad 'instructie'"}]
[null,null,"Advies","!! *"]
["Insleep",{"$f":"SUM(Insleep!U2:U22)","v":17},{"$f":"SUM(Insleep!S2:S22)","v":0},{"$f":"SUM(Insleep!T2:T22)","v":0}]
["Overdracht tussen rondes",{"$f":"SUM('Overdracht tussen rondes'!U2:U21)","v":13},{"$f":"SUM('Overdracht tussen rondes'!S2:S21)","v":0},{"$f":"SUM('Overdracht tussen rondes'!T2:T20)","v":0}]
["Verspreiding binnen een ronde",{"$f":"SUM('Verspreiding binnen een ronde'!U2:U36)","v":33},{"$f":"SUM('Verspreiding binnen een ronde'!S2:S36)","v":0},{"$f":"SUM('Verspreiding binnen een ronde'!T2:T36)","v":0}]
["Weerstand",{"$f":"SUM(Weerstand!U2:U17)","v":15},{"$f":"SUM(Weerstand!S2:S17)","v":0},{"$f":"SUM(Weerstand!T2:T17)","v":0}]
["Zoönotische risico's",{"$f":"SUM('Zoonotische risicos'!U2:U12)","v":9},{"$f":"SUM('Zoonotische risicos'!S2:S12)","v":0},{"$f":"SUM('Zoonotische risicos'!T2:T12)","v":0}]
["Registratie",{"$f":"SUM(Registratie!U2:U9)","v":6},{"$f":"SUM(Registratie!S2:S9)","v":0},{"$f":"SUM(Registratie!T2:T9)","v":0}]
["* : Dierenarts adviseert op korte termijn  te starten met de uitvoering van maatregelen die zijn aangemerkt met een !!"]
[]
[]
["Vragen van veehouder",null,null,null,"Probleemdefinitie"]
[{"$f":"IF(visite!B17<>\"\",visite!B17,\"\")","v":""},null,null,null,{"$f":"IF(probleemdefinitie!B2<>\"\",probleemdefinitie!B2,\"\")","v":""}]
[{"$f":"IF(visite!B18<>\"\",visite!B18,\"\")","v":""},null,null,null,{"$f":"IF(probleemdefinitie!B3<>\"\",probleemdefinitie!B3,\"\")","v":""}]
[{"$f":"IF(visite!B19<>\"\",visite!B19,\"\")","v":""},null,null,null,{"$f":"IF(probleemdefinitie!B4<>\"\",probleemdefinitie!B4,\"\")","v":""}]
[{"$f":"IF(visite!B20<>\"\",visite!B20,\"\")","v":""},null,null,null,{"$f":"IF(probleemdefinitie!B5<>\"\",probleemdefinitie!B5,\"\")","v":""}]
[{"$f":"IF(visite!B21<>\"\",visite!B21,\"\")","v":""},null,null,null,{"$f":"IF(probleemdefinitie!B6<>\"\",probleemdefinitie!B6,\"\")","v":""}]
[{"$f":"IF(visite!B22<>\"\",visite!B22,\"\")","v":""},null,null,null,{"$f":"IF(probleemdefinitie!B7<>\"\",probleemdefinitie!B7,\"\")","v":""}]
[]
[]
["* : Dierenarts adviseert op korte termijn  te starten met de uitvoering van maatregelen die zijn aangemerkt met een !!"]
[]
["Risicofactor waarvoor een maatregel is geadviseerd",null,"!!*","Nr","Toelichting"]
["Vraag","Antwoord"]
[]
[]
[]
["Wat gaat al goed"]
[]
[]
[]
[]
[]
[]
[]
["Wat zijn de vijf belangrijkste adviezen?","Wie*","Datum**",null,"Verwachte uitkomst / effect:"]
[]
[]
[]
[]
[]
["*Wie het advies uitvoert; ** Datum waarvoor advies wordt uitgevoerd."]
["Opmerkingen / aanvullende afspraken"]
[]
[]
[]
["Datum volgende afspraak voor evaluatie van (effect van) uitgevoerde maatregelen (dd-mm-jjjj)"]
[]
["Ondertekening gespreksverslag","Naam",null,"Datum","Handtekening"]
["Veehouder"]
["Vertegenwoordiger / eigenaar"]
["Dierenarts"]

{"sheet":"hulptabellen_opvolgplan","index":17,"n_rows":25,"n_cols":5,"rows_kept":25,"cut":false,"hidden":true,"merged":[]}
["Wat gaat al goed"]
[]
[]
[]
[]
[]
[]
[]
["Wat zijn de vijf belangrijkste adviezen?","Wie*","Datum**",null,"Verwachte uitkomst / effect:"]
[]
[]
[]
[]
[]
["*Wie het advies uitvoert; ** Datum waarvoor advies wordt uitgevoerd."]
["Opmerkingen / aanvullende afspraken"]
[]
[]
[]
["Datum volgende afspraak voor evaluatie van (effect van) uitgevoerde maatregelen (dd-mm-jjjj)"]
[]
["Ondertekening gespreksverslag","Naam",null,"Datum","Handtekening"]
["Veehouder"]
["Vertegenwoordiger / eigenaar"]
["Dierenarts"]